Cogmind - Beta 16 @@@ ROGUE MODE // 2025.12.05 @ 22:44:02 Player: Cogchaaaan Result: Establishing 0b11! Performance ------------- Evolutions (9) 4500 Regions Visited (27) 5400 Robots Destroyed (1130) 5650 Value Destroyed (71520) 71520 Prototype IDs (378) 7560 Alien Tech Used (8) 1600 Bonus (108768) 108768 TOTAL SCORE: 204998 Bonus ------- Triggered High Security 1000 High Alert Combat Kills 54159 Follower Combat Kills 346 Registered with UFD 300 Met Optimus in HQ 500 Met Zhirov 300 Met Warlord at Base 500 MAIN.C Attacked Warlord 500 Scanned by Researcher 500 Met Optimus at Protoforge 1000 Executed Drillbomb Mission 10000 Recovered Sigix Corpse 2000 Destroyed MAIN.C Guards 500 Met MAIN.C 5000 Destroyed MAIN.C Shell 5000 Destroyed MAIN.C 10000 Met Architect 300 Started Test 138-B 500 Destroyed A8 300 Destroyed A6 400 Destroyed A5 500 Destroyed A4 700 Destroyed A3 800 Destroyed A2 1000 Destroyed Architect 15000 Win 3000 Friendly Fire -5337 Cogmind --------- Core Integrity 1387/1600 Matter 275/300 Energy 1253/1260 System Corruption 1% Temperature Cool (10) Movement Hovering (33) Location 0b11 Command Parts ------- > --- POWER (3) -------- Concept Zero-point Core Concept Zero-point Core Concept Zero-point Core > --- PROPULSION (8) --- Cooled Antigrav System Combat Antigrav System Experimental Antigrav System Experimental Antigrav System Concept Combat Aerolev Unit Concept Combat Aerolev Unit Concept Gyrokinetic System Concept Gyrokinetic System > --- UTILITY (12) ----- Experimental Power Amplifier Concept Antigrav Storage Unit Concept Chromion Battery Experimental Optical Array Concept Weapon Articulator Concept Core Analysis Suite Experimental Armor Integrity Analyzer Advanced Kinecellerator Experimental Weapon Cycler Experimental Reaction Control System Concept Phase Shift Module Concept Energy Mantle > --- WEAPON (3) ------- Concept Miniperforator Omega Cannon > --- INVENTORY (25) --- Zero-point Reactor Cooled Antigrav System Cooled Antigrav System Combat Linear Gravjet Experimental Energy Well (600) Experimental Matter Compressor (500) Advanced Quantum Shading Machine Concept Weapon Articulator Experimental Weapon Cycler Femtoactuators Femtoactuators Experimental Reaction Control System Experimental Phase Shifter Graphene Brace AEGIS Remote Shield Concept Matter Streamer High-powered Transdimensional Reconstructor Concept Disintegration Ray (1) Concept Plasma Driver Sigix Broadsword Experimental Jetlance Experimental Jetlance Sigix Corpse Peak State ------------ > --- POWER ------------ Concept Zero-point Core Concept Zero-point Core Concept Zero-point Core > --- PROPULSION ------- Experimental Antigrav System Experimental Antigrav System Gravjet Array Concept Combat Aerolev Unit Concept Combat Aerolev Unit Concept Gyrokinetic System Concept Gyrokinetic System > --- UTILITY ---------- Concept Antigrav Storage Unit Concept Chromion Battery Experimental Optical Array Concept Weapon Articulator Concept Core Analysis Suite Experimental Armor Integrity Analyzer Experimental Reaction Control System Concept Phase Shift Module Concept Cloak Mesh Concept Cloak Mesh Concept Energy Mantle Concept Antimissile System > --- WEAPON ----------- Hypervelocity Multirail Sigix Broadsword > --- INVENTORY -------- Concept Zero-point Core Experimental Antigrav System Experimental Antigrav System Concept Combat Aerolev Unit Advanced Coolant Injector Concept Weapon Articulator Concept Core Analysis Suite Femtoactuators Femtoactuators Experimental Reaction Control System Experimental Reaction Control System Concept Phase Shift Module Graphene Brace Advanced Focal Shield Concept Energy Mantle Concept Matter Streamer Transdimensional Reconstructor Concept Disintegration Ray Concept Plasma Driver Concept Miniperforator Concept Miniperforator Concept Tiamat Rocket Array Vortex Lance Experimental Jetlance Experimental Jetlance [Rating: 329] Favorites ----------- Power Concept Zero-point Core Engine Improved Ion Engine Power Core Concept Zero-point Core Reactor Experimental Antimatter Reactor Propulsion Light Treads Treads Light Treads Leg Aluminum Leg Wheel Compact Wheel Hover Unit Concept Gyrokinetic System Flight Unit Cooled Impulse Thruster Utility Experimental Optical Array Device Experimental Reaction Control System Storage Concept Antigrav Storage Unit Processor Experimental Optical Array Hackware Hacking Suite Protection Hardened Medium Armor Plating Weapon Sigix Broadsword Energy Gun EM Pulse Gun Energy Cannon Concept Plasma Driver Ballistic Gun Heavy Assault Rifle Ballistic Cannon Concept Miniperforator Launcher Concept Tiamat Rocket Array Special Weapon Plasma Cutter Impact Weapon Great Maul Slashing Weapon Sigix Broadsword Piercing Weapon Experimental Jetlance Special Melee Weapon Datajack Build | -11 -10 -10 -9 -9 -8 -7 -7 -7 -7 -5 -5 -5 -5 -4 -4 -4 -4 -4 -3 -3 -3 -2 -2 -2 -1 -1 -1 ------- Run | Yrd Mat Min Mat Min Mat Fac Sto Rec Scr Fac Upp Upp Zhi Pro Fac Upp Upp War Pro Res Tes Res Qua Frg Acc Com Ac0 Slots Evolved 18 | . . . 2 . 2 2 . . . 4 . . . . 2 . . . . 2 . 2 . . 2 . . Power 2 | . . . . . . . . . . . . . . . . . . . . 1 . . . . 1 . . Propulsion 5 | . . . 1 . . 1 . . . 2 . . . . 1 . . . . . . . . . . . . Utility 10 | . . . . . 2 1 . . . 2 . . . . 1 . . . . 1 . 2 . . 1 . . Weapon 1 | . . . 1 . . . . . . . . . . . . . . . . . . . . . . . . Parts Attached 253 | 8 4 1 25 1 21 12 19 5 5 14 . 1 4 . 2 . . 8 . 3 10 4 4 71 12 15 4 Power 20 | 1 . . 4 . 2 . 3 . 1 . . . . . . . . . . 1 . . . 6 2 . . Engine 7 | 1 . . 3 . 1 . 2 . . . . . . . . . . . . . . . . . . . . Core 9 | . . . 1 . 1 . 1 . 1 . . . . . . . . . . 1 . . . 2 2 . . Reactor 4 | . . . . . . . . . . . . . . . . . . . . . . . . 4 . . . Propulsion 73 | 2 . . 11 . 7 5 8 4 . 8 . . 3 . . . . 1 . 1 5 1 . 12 3 2 . Treads 29 | . . . 10 . 6 5 8 . . . . . . . . . . . . . . . . . . . . Leg 2 | 2 . . . . . . . . . . . . . . . . . . . . . . . . . . . Wheel 4 | . . . . . . . . 4 . . . . . . . . . . . . . . . . . . . Hover 12 | . . . . . . . . . . . . . . . . . . . . . . . . 7 3 2 . Flight 26 | . . . 1 . 1 . . . . 8 . . 3 . . . . 1 . 1 5 1 . 5 . . . Utility 107 | 2 1 . 6 1 4 5 4 1 1 3 . 1 1 . 2 . . 5 . 1 5 1 2 43 5 9 4 Device 57 | 1 . . . 1 1 1 2 . . . . . . . . . . 2 . . 3 . 2 28 4 9 3 Storage 11 | 1 1 . 3 . . . . . . 1 . 1 1 . . . . . . . . . . 3 . . . Processor 15 | . . . . . . 1 . . 1 1 . . . . . . . . . 1 . . . 11 . . . Hackware 7 | . . . . . . 1 . 1 . . . . . . 1 . . 1 . . 2 1 . . . . . Protection 17 | . . . 3 . 3 2 2 . . 1 . . . . 1 . . 2 . . . . . 1 1 . 1 Artifact . | . . . . . . . . . . . . . . . . . . . . . . . . . . . . Weapon 53 | 3 3 1 4 . 8 2 4 . 3 3 . . . . . . . 2 . . . 2 2 10 2 4 . Energy Gun 6 | 2 1 . . . . . . . 1 . . . . . . . . . . . . . . 1 . 1 . Energy Cannon 5 | . . . . . . . . . . 1 . . . . . . . . . . . 1 . 2 . 1 . Ballistic Gun 19 | 1 2 . 4 . 6 1 2 . . . . . . . . . . . . . . . . 3 . . . Ballistic Cannon 4 | . . . . . . . 1 . . . . . . . . . . . . . . . . . 2 1 . Launcher 7 | . . 1 . . 1 . 1 . . 1 . . . . . . . . . . . . . 3 . . . Special Weapon 2 | . . . . . . . . . . . . . . . . . . 2 . . . . . . . . . Impact Weapon 2 | . . . . . 1 1 . . . . . . . . . . . . . . . . . . . . . Slashing Weapon 4 | . . . . . . . . . 2 . . . . . . . . . . . . . 2 . . . . Piercing Weapon 3 | . . . . . . . . . . . . . . . . . . . . . . 1 . 1 . 1 . Special Melee Weapon 1 | . . . . . . . . . . 1 . . . . . . . . . . . . . . . . . Unidentified Prototypes 22 | . . . 3 1 1 . 4 . 1 . . . 1 . . 1 . . . . . . 1 9 . . . Corrupted Parts 1 | . . . . . . . . . . . . . . . . . . . . . . . . . . 1 . System Corruption 10 | . . . . . . . . . . . . . . . . . . . . . . . . . . 10 . Parts Lost 24 | . 1 . 1 . . 2 5 . . . . . . . . . . 1 . 1 . . . 8 3 . 2 Power 2 | . . . 1 . . . . . . . . . . . . . . . . . . . . 1 . . . Propulsion 5 | . . . . . . 1 2 . . . . . . . . . . . . . . . . 2 . . . Utility 14 | . . . . . . 1 2 . . . . . . . . . . 1 . 1 . . . 5 2 . 2 Weapon 3 | . 1 . . . . . 1 . . . . . . . . . . . . . . . . . 1 . . Highest Loss Streak 3 | . 1 . 1 . . 1 3 . . . . . . . . . . 1 . 1 . . . 2 3 . 1 To Critical Strikes . | . . . . . . . . . . . . . . . . . . . . . . . . . . . . Average Backups 20 | 2 8 9 18 24 24 24 24 24 21 10 9 10 11 15 13 13 14 14 14 12 13 12 13 17 23 23 22 Power 1 | . 1 1 1 2 2 2 2 2 1 1 1 1 1 1 1 1 1 1 2 1 1 1 2 1 . . 1 Propulsion 4 | 1 2 3 5 7 7 6 6 8 8 2 2 2 2 3 2 2 2 2 2 2 3 3 3 3 2 1 3 Utility 8 | . 1 2 5 7 8 9 8 8 7 2 2 2 2 5 4 5 5 4 5 4 3 1 1 6 11 13 11 Weapon 5 | . 2 3 5 7 5 5 6 4 2 2 1 2 2 2 1 1 1 2 2 3 4 3 4 5 7 6 5 Tool/Special . | . . . . . . . . . . . . . . . . . . . . . . . . . . . . Unused Backups 81 | . . . 1 . 3 1 5 3 2 2 1 . 2 . . . . 4 . . 2 . 2 29 . 7 17 Power 12 | . . . 1 . . . 2 . . . . . . . . . . 2 . . 1 . 1 2 . 2 1 Propulsion 11 | . . . . . . . 2 . . . . . 2 . . . . . . . . . . 4 . . 3 Utility 42 | . . . . . . 1 1 . 1 1 1 . . . . . . 1 . . 1 . 1 18 . 5 11 Weapon 13 | . . . . . 3 . . 3 . 1 . . . . . . . 1 . . . . . 4 . . 1 Tool/Special 3 | . . . . . . . . . 1 . . . . . . . . . . . . . . 1 . . 1 Average Slot Usage (%) 91 | . 100 100 99 100 98 99 98 99 65 86 88 88 88 88 85 83 80 82 84 84 85 86 90 89 91 92 95 Engine 1 | . 14 14 10 . . . 2 . . . . . . . . . . . . . . . . . . . . Core 6 | . . . . 11 8 7 4 7 7 5 5 5 5 5 5 5 5 5 5 9 9 8 8 4 10 11 11 Treads 8 | . . . 32 33 27 30 29 19 . . . . . . . . . . . . . . . . . . . Wheel 2 | . . . . . . . . 10 30 1 . . . . . . . . . . . . . . . . . Hover 8 | . . . . . . . . . . . . . . . . . . . . . . . . 6 25 26 30 Flight 9 | . . . . . . . . . . 28 29 29 29 29 31 30 30 34 35 30 30 29 29 22 . . . Device 14 | . 14 14 . . 8 10 1 6 2 11 11 11 11 11 10 10 10 5 9 8 8 11 13 21 25 23 25 Storage 7 | . 14 14 11 11 9 7 7 7 7 5 5 5 5 5 5 5 5 5 5 4 4 4 4 5 7 7 7 Processor 8 | . . . . . . 6 7 7 1 10 11 11 11 11 10 10 10 10 10 12 13 12 12 15 11 11 11 Hackware 1 | . . . . . . . . 2 7 5 5 5 5 5 9 10 10 10 10 9 9 12 12 . . . . Protection 5 | . . . 10 10 17 11 20 12 . 4 5 5 5 5 5 5 5 6 5 4 4 4 2 . . 2 . Ballistic Gun 9 | . 4 27 32 33 26 20 21 22 . . . . . . . . . . . . . . . . 2 . . Slashing Weapon 2 | . . . . . . . . . 5 4 5 5 5 5 5 5 5 5 5 4 4 4 7 6 2 2 . Peak Build Rating 329 | 7 8 8 20 27 32 36 47 46 42 86 86 81 94 99 108 108 108 129 129 144 155 176 202 307 329 318 316 Average Rating 161 | 4 6 7 17 20 27 32 41 45 25 74 81 81 88 94 102 102 102 112 120 132 145 168 189 253 318 312 312 On Entrance 100 | . 7 7 8 20 21 28 34 46 27 42 80 81 81 94 94 102 102 103 129 121 130 154 169 199 307 309 309 Avg Prop Armor Cover (%) 1 | . . . . . . . . 14 . 1 . . . . 1 1 1 1 2 . 1 1 1 2 . . . Naked Turns . | . . . . . . . . . . . . . . . . . . . . . . . . . . . . Heaviest Build 138 | 15 20 20 102 99 109 133 138 118 92 27 27 27 37 37 39 36 36 42 39 45 45 51 53 101 116 132 129 Greatest Support 160 | 20 20 20 60 60 60 80 89 83 64 34 34 34 37 46 54 54 37 62 62 67 72 75 72 160 130 130 129 Greatest Overweight (x) 7 | 4 . . 1 1 1 1 2 7 1 . . . . . . . . . . 1 . 1 . 2 . 1 . Average Overweight (x) . | . . . . 1 1 1 1 1 1 . . . . . . . . . . . . . . . . . . Largest Inventory Capacity 25 | 8 10 10 25 25 25 25 25 25 25 25 10 10 15 15 15 15 15 15 15 15 15 15 15 25 25 25 25 Average Capacity 22 | 7 9 10 21 25 25 25 25 25 25 10 10 10 13 15 15 15 15 15 15 15 15 15 15 21 25 25 25 Most Carried 25 | 4 10 10 25 25 25 25 25 25 24 19 10 10 15 15 14 14 15 15 15 15 15 14 15 25 25 25 25 Average Carried 20 | 3 8 9 18 24 24 24 24 24 21 10 9 10 11 14 13 13 14 14 14 13 14 13 14 18 23 23 24 Final Capacity 25 | 8 10 10 25 25 25 25 25 25 25 10 10 10 15 15 15 15 15 15 15 15 15 15 15 25 25 25 25 Final Carried 25 | 4 9 10 24 25 25 24 25 22 19 10 10 10 15 15 14 14 15 14 14 15 14 14 15 25 25 25 25 Class Distribution -------------------- 36% | Scavenger-Sprinter 15% | Scavenger-Tank 10% | Scavenger-Mutant 9% | Tank 5% | Hacker-Scout 5% | Scavenger-Gladiator 4% | Mutant Dominant Class ---------------- Mutant | -10/Materials Mutant | -10/Mines Scavenger-Tank | -9/Materials Scavenger-Tank | -9/Mines Tank | -8/Materials Scavenger-Tank | -7/Factory Tank | -7/Storage Tank | -7/Recycling Scavenger-Mutant | -7/Scraptown Scout | -5/Factory Scout | -5/Upper Caves Scout | -5/Upper Caves Scout | -5/Zhirov Scout | -4/Proximity Caves Hacker-Scout | -4/Factory Hacker-Scout | -4/Upper Caves Hacker-Scout | -4/Upper Caves Hacker-Sprinter | -4/Warlord Hacker-Scout | -3/Proximity Caves Hacker-Scout | -3/Research Hacker-Scout | -3/Testing Hacker-Scout | -2/Research Hacker-Scout | -2/Quarantine Scavenger-Sprinter | -2/Protoforge Scavenger-Sprinter | -1/Access Scavenger-Sprinter | -1/Command Scavenger-Sprinter | -1/Access_0 Resources | -11 -10 -10 -9 -9 -8 -7 -7 -7 -7 -5 -5 -5 -5 -4 -4 -4 -4 -4 -3 -3 -3 -2 -2 -2 -1 -1 -1 ----------- Run | Yrd Mat Min Mat Min Mat Fac Sto Rec Scr Fac Upp Upp Zhi Pro Fac Upp Upp War Pro Res Tes Res Qua Frg Acc Com Ac0 Matter Collected 33109 | 280 50 56 1484 . 1098 921 1401 448 55 250 50 10 60 10 40 84 46 157 128 150 . . 255 11766 4209 6636 3465 Remotely 11920 | . . . . . . . . . . . . . . . . . . . . . . . . 4304 1622 4429 1565 Salvage Created 70714 | 109 457 19 1978 . 1351 900 2482 1053 . 197 90 . 343 . 142 . 249 . 166 269 . . 313 17935 22337 16043 4281 Parts 2414 | 9 26 2 122 . 89 51 130 35 . 8 1 . 3 . 5 . 5 . 13 8 . . 14 595 590 490 218 Haulers Intercepted 26 | . 2 . 6 . 4 . 6 . . 1 . . . . 1 . . . . . . . . 2 4 . . Recyclers Shooed 6 | . . . 1 . . 1 . 1 . . . . . . . . . . . . . . 1 . 2 . . Parts Field Recycled . | . . . . . . . . . . . . . . . . . . . . . . . . . . . . Retrieved Matter . | . . . . . . . . . . . . . . . . . . . . . . . . . . . . Parts Self-Destructed 12 | . . . . . . . . . . . 2 1 1 . . . 2 . 6 . . . . . . . . Prevented . | . . . . . . . . . . . . . . . . . . . . . . . . . . . . Parts Restored 21 | . . . . . . . . . . . . . . . . . . . . . . . . 21 . . . Faulty 21 | . . . . . . . . . . . . . . . . . . . . . . . . 21 . . . Kills | -11 -10 -10 -9 -9 -8 -7 -7 -7 -7 -5 -5 -5 -5 -4 -4 -4 -4 -4 -3 -3 -3 -2 -2 -2 -1 -1 -1 ------- Run | Yrd Mat Min Mat Min Mat Fac Sto Rec Scr Fac Upp Upp Zhi Pro Fac Upp Upp War Pro Res Tes Res Qua Frg Acc Com Ac0 Combat Hostiles Destroyed 965 | . 4 3 40 . 31 16 32 4 . . . . . . . . . . 9 . . . . 327 266 185 48 Melee 67 | . . . . . . . . . . . . . . . . . . . . . . . . 58 2 5 2 Guns 426 | . 2 . 36 . 31 12 26 4 . . . . . . . . . . . . . . . 86 229 . . Cannons 253 | . . . . . . . . . . . . . . . . . . . . . . . . . 35 178 40 AOE 209 | . 2 3 4 . . 4 5 . . . . . . . . . . . 9 . . . . 182 . . . Classes Destroyed 30 | 2 3 1 6 . 2 1 3 . . . . . . . . . . . . . . . . 11 . 1 . Worker 24 | . . . 3 . . 3 5 . . . . . . . . . . . . . . . 2 . 2 9 . Builder 11 | . . . . . 1 1 3 . . . . . . . . . . . . . . . . . 6 . . Tunneler 2 | 2 . . . . . . . . . . . . . . . . . . . . . . . . . . . Hauler 29 | . 2 . 6 . 4 . 6 . . 1 . . . . 1 . . . . . . . . 5 4 . . Recycler 27 | 1 1 . 2 . . 1 2 10 . . . . . . . . . . . 2 . . 2 . 5 1 . Carrier 2 | . . . . . . . . . . . . . . . . . . . . . . . . 2 . . . Mechanic 55 | . . . . . . . 1 . . . . . . . . . . . . . . . . 22 19 13 . Operator 13 | . . . 2 . 1 . 1 . . 2 . . . . . . . . . . . . . 1 1 5 . Drone 51 | . . . . . . . . . . . . . . . . . . . . . . . . 51 . . . Watcher 27 | . 3 . 2 . 3 . 2 . . 2 . . . . 1 . . . . . . . 1 . 8 5 . Swarmer 81 | . . 3 14 . 17 . 2 . . . . . . . . . . . 9 . . . . 31 . 5 . Cutter 13 | . . . . . . . . . . . . . . . . . . . . . . . . . 4 9 . Saboteur 33 | . . . . . . . . . . . . . . . . . . . . . . . . 7 18 8 . Grunt 215 | . 4 . 12 . 5 8 17 . . . . . . . . . . . . . . . . 35 67 67 . Brawler 51 | . . . 3 . . . 1 . . . . . . . . . . . . . . . . 27 10 10 . Duelist 41 | . . . 1 . . . . . . . . . . . . . . . . . . . . 16 9 15 . Protector 51 | . . . 1 . . . 1 . . . . . . . . . . . . . . . . 20 16 13 . Researcher 5 | . . . . . . . . . . . . . . . . . . . . . . . . 5 . . . Sentry 53 | . . . 10 . 8 4 6 4 . . . . . . . . . . . . . . . 10 5 6 . Demolisher 6 | . . . . . . . 2 . . . . . . . . . . . . . . . . . 3 1 . Specialist 1 | . . . . . . . 1 . . . . . . . . . . . . . . . . . . . . Hunter 74 | . . . . . 1 2 1 . . . . . . . . . . . . . . . . 33 30 7 . Programmer 92 | . . . . . . 2 3 . . . . . . . . . . . . . . . . 18 45 24 . Heavy 1 | . . . . . . . . . . . . . . . . . . . . . . . . . . 1 . M Guard 2 | . . . . . . . . . . . . . . . . . . . . . . . . . . 2 . Enhanced Grunt 32 | . . . . . . . . . . . . . . . . . . . . . . . . . . . 32 Enhanced Sentry 1 | . . . . . . . . . . . . . . . . . . . . . . . . . . . 1 Enhanced Hunter 8 | . . . . . . . . . . . . . . . . . . . . . . . . . . . 8 Hotshot 2 | . . . . . . . . . . . . . . . . . . . . . . . . 2 . . . Decapitator 5 | . . . . . . . . . . . . . . . . . . . . . . . . 5 . . . Immortal 2 | . . . . . . . . . . . . . . . . . . . . . . . . 2 . . . Combat Programmer 2 | . . . . . . . . . . . . . . . . . . . . . . . . . . 2 . Investigator 2 | . . . . . . . . . . . . . . . . . . . . . . . . . . 2 . Striker 72 | . . . . . . . . . . . . . . . . . . . . . . . . 28 35 9 . Executioner 70 | . . . . . . . . . . . . . . . . . . . . . . . . 41 24 5 . Alpha 7 2 | . . . . . . . . . . . . . . . . . . . . . . . . 2 . . . Scrapper 1 | . . . . . . . . . . . . . . . . . . . . . . . . 1 . . . Elite 4 | . . . . . . . . . . . . . . . . . . . . . . . . 4 . . . Scrapoid 10 | . . . . . . . . . . . . . . . . . . . . . . . . 10 . . . Best Kill Streak 73 | 3 3 3 6 . 4 8 15 9 . 2 . . . . 1 . . . 5 1 . . 5 21 73 30 7 Combat Bots Only 63 | . 2 3 5 . 4 6 9 1 . . . . . . . . . . 5 . . . . 19 63 21 7 Max Kills in Single Turn 11 | 1 2 2 4 . 2 2 5 2 . 1 . . . . 1 . . . 4 1 . . 1 11 4 4 2 Gunslinging 1 | . . . 1 . 1 . 1 . . . . . . . . . . . . . . . . . . . . Exploded 9 | . 2 2 3 . . 2 3 . . . . . . . . . . . 4 . . . . 9 . . . Melee 1 | . . . . . . . . . . . . . . . . . . . . . . . . 1 1 1 1 Uniques/NPCs Destroyed 9 | . . . . . . . . . . . . . . . . . . . . . . . . . . 2 7 MAIN.C Shell (-1/Command) MAIN.C (-1/Command) A8 (-1/Access_0) A6 (-1/Access_0) A5 (-1/Access_0) A4 (-1/Access_0) A2 (-1/Access_0) Architect (-1/Access_0) A3 (-1/Access_0) Combat | -11 -10 -10 -9 -9 -8 -7 -7 -7 -7 -5 -5 -5 -5 -4 -4 -4 -4 -4 -3 -3 -3 -2 -2 -2 -1 -1 -1 -------- Run | Yrd Mat Min Mat Min Mat Fac Sto Rec Scr Fac Upp Upp Zhi Pro Fac Upp Upp War Pro Res Tes Res Qua Frg Acc Com Ac0 Hostile Shots Fired 2498 | . 19 8 126 . 114 215 162 90 . 6 6 . . 8 . . . 17 14 17 . 12 2 317 769 267 329 Missed 1491 | . 7 4 36 . 35 69 58 22 . 4 2 . . 4 . . . 11 7 8 . 11 2 178 575 199 259 Intercepted 4 | . . . . . . . . . . . . . . . . . . . . . . . . . 1 3 . Deflected 3 | . . . . . . . . . . . . . . . . . . . . . . . . 3 . . . Hits 1007 | . 12 4 90 . 79 146 104 68 . 2 4 . . 4 . . . 6 7 9 . 1 . 139 194 68 70 Melee 47 | . . . 6 . . . 8 . . . . . . . . . . . . . . . . 13 16 3 1 Projectile 960 | . 12 4 84 . 79 146 96 68 . 2 4 . . 4 . . . 6 7 9 . 1 . 126 178 65 69 AOE 14 | . . . . . . . 3 . . . . . . . . . . . . 3 . . . 4 . 4 . Critical Strikes 61 | . 1 . 4 . 4 3 4 . . 1 1 . . 1 . . . . . . . . . 18 14 3 7 Actively Blocked 27 | . . . . . . . . . . . . . . . . . . . . . . . . 8 9 3 7 Part Disruptions 2 | . . . . . . . . . . . . . . . . . . . . . . . . . 1 1 . Damage Taken 15771 | . 203 29 1252 . 686 1297 1593 440 . 47 70 . . 85 64 . . 212 169 288 . 21 . 5067 2146 961 1141 Core 1577 | . 41 6 112 . 62 111 109 16 . . 18 . . 41 . . . 76 22 37 . 21 . 485 160 42 218 Absorbed by Shields 4450 | . . . . . 257 192 . . . . . . . . . . . . . . . . . 350 1673 900 1078 Redirected to Shielding 151 | . . . . . . . . . . . . . . . . . . . . . . . . . . . 151 Ignored by Resistances 1180 | . . . . . . 185 50 62 . . . . . . . . . . . . . . . . 779 104 . Regen/Repaired (Parts) 5611 | . . . 212 . 299 . 336 . . . . . . . . . . 51 . . . . . 3148 963 602 . Core Remaining (%) 84 | 100 . 81 . 72 88 . . . 66 . . . . 94 . . . . 91 . 97 . . 65 . . 86 Volleys Fired 1585 | 3 21 4 99 . 85 45 73 29 . 5 6 . . 3 3 7 1 3 6 1 3 3 . 283 434 304 164 Largest 3 | 2 2 2 3 . 3 3 3 3 . 1 1 . . 1 1 1 1 1 1 1 1 1 . 1 1 1 2 Hottest 240 | 80 80 40 69 . 75 69 81 81 . 90 90 . . 90 90 90 90 45 90 90 90 105 . 140 140 140 240 Shots Fired 2231 | 6 41 5 287 . 251 127 202 86 . 5 6 . . 3 3 7 1 3 6 1 3 3 . 283 434 304 164 Gun 1608 | 6 41 2 282 . 250 123 197 86 . . . . . . . . . . . . . . . 208 368 13 32 Cannon 525 | . . . . . . . . . . 3 6 . . 3 3 7 1 . 1 1 3 3 . 5 66 291 132 Launcher 96 | . . 3 5 . 1 4 5 . . 2 . . . . . . . 1 5 . . . . 70 . . . Special 2 | . . . . . . . . . . . . . . . . . . 2 . . . . . . . . . Kinetic 1951 | . . 2 282 . 250 123 197 86 . . . . . . . . . . . . . . . 207 424 271 109 Thermal 80 | . . . . . . . . . . 3 6 . . 3 3 7 1 . 1 1 3 3 . 5 10 11 23 Explosive 91 | . . 3 5 . 1 4 . . . 2 . . . . . . . 1 5 . . . . 70 . . . Electromagnetic 61 | 6 41 . . . . . 5 . . . . . . . . . . . . . . . . . . 9 . Entropic 46 | . . . . . . . . . . . . . . . . . . . . . . . . 1 . 13 32 Robot Hit Streak 59 | 4 4 . 21 . 17 17 20 37 . 2 . . . . . . . 3 6 . . . . 44 59 29 24 Robot Miss Streak 8 | 1 3 2 4 . 7 3 3 1 . 3 . . . . . . . 1 3 . . . . 5 4 8 7 Penetration Max 4 | . . . . . . . . . . . . . . . . . . . . . . . . 3 4 3 1 Secondary Targets 16 | . . . 8 . 3 2 3 . . . . . . . . . . . . . . . . . . . . Max Gunslinging Chain 1 | . . . 1 . 1 1 1 . . . . . . . . . . . . . . . . . . . . Capacitor 9 | . . . . . . . . . . . . . . . . . . . . . . . . . . 9 . Shots Hit Robots 1970 | 4 21 . 189 . 146 86 139 66 . 14 4 . 7 . 6 . 4 1 3 3 . . 7 382 420 319 149 Core Hits 3394 | 3 15 2 88 . 58 44 102 25 . 5 1 . 4 . 2 . 3 . 26 2 . . 3 1215 759 884 153 Critical Kills 634 | . . . 3 . . . . . . . . . . . . . . . . . . . . 92 295 198 46 Critical Parts Destroyed 636 | . . . 1 . . 1 2 . . . . . . . . . . . . . . . . 86 320 203 23 Critical Strikes 1336 | . . . 4 . . 2 2 . . . . . . . . . . . . . . . . 190 632 417 89 Meltdown 8 | . . . . . . . . . . . . . . . . . . . . . . . . 1 . 1 6 Destroy 1296 | . . . 4 . . 2 2 . . . . . . . . . . . . . . . . 185 632 403 68 Blast 4 | . . . . . . . . . . . . . . . . . . . . . . . . . . . 4 Corrupt 1 | . . . . . . . . . . . . . . . . . . . . . . . . . . 1 . Sever 2 | . . . . . . . . . . . . . . . . . . . . . . . . 2 . . . Impale 25 | . . . . . . . . . . . . . . . . . . . . . . . . 2 . 12 11 Melee Attacks 571 | . . . . . 1 10 6 . . 33 9 5 8 13 37 16 11 66 12 11 13 17 19 213 6 41 24 Impact 17 | . . . . . 1 10 6 . . . . . . . . . . . . . . . . . . . . Slashing 481 | . . . . . . . . . . 32 9 5 8 13 36 16 11 66 12 11 13 15 19 203 6 6 . Piercing 66 | . . . . . . . . . . . . . . . . . . . . . . . . 7 . 35 24 Entropic 5 | . . . . . . . . . . . . . . . . . . . . . . 2 . 3 . . . Sneak Attacks 88 | . . . . . . 1 . . . 2 . . . . 3 . . . . 2 . . 4 75 . 1 . Combat Hostiles 1 | . . . . . . . . . . . . . . . . . . . . . . . . . . 1 . Follow-up Attacks 13 | . . . . . . . . . . . . . 1 . . . . . . . . . . 9 . 3 . Damage Inflicted 113600 | 93 453 227 3257 . 2511 1962 4188 1294 . 739 226 . 580 . 374 . 284 . 722 205 . . 784 74321 8126 6888 6366 Guns 22803 | 70 318 . 2762 . 2474 1405 2586 1280 . . . . . . . . . . . . . . . 3656 6605 490 1157 Cannons 10044 | . . . . . . . . . . . . . . . . . . . . . . . . . 1521 4301 4222 Explosions 62189 | 23 135 223 366 . . 371 1548 . . 138 . . . . . . . . 722 . . . . 58663 . . . Melee 18250 | . . . . . . 110 . . . 601 226 . 580 . 374 . 284 . . 205 . . 784 12002 . 2097 987 Ramming 314 | . . 4 129 . 37 76 54 14 . . . . . . . . . . . . . . . . . . . Kinetic 29935 | . . . 2762 . 2474 1405 2586 1280 . . . . . . . . . . . . . . . 3612 7548 4102 4166 Thermal 1557 | 23 135 . . . . 135 550 . . . . . . . . . . . . . . . . . 578 80 56 Explosive 60348 | . . 223 366 . . 236 . . . 138 . . . . . . . . 722 . . . . 58663 . . . Electromagnetic 1505 | 70 318 . . . . . 998 . . . . . . . . . . . . . . . . . . 119 . Impact 110 | . . . . . . 110 . . . . . . . . . . . . . . . . . . . . . Slashing 14931 | . . . . . . . . . . 601 226 . 580 . 374 . 284 . . 205 . . 784 11505 . 372 . Piercing 3209 | . . . . . . . . . . . . . . . . . . . . . . . . 497 . 1725 987 Entropic 1691 | . . . . . . . . . . . . . . . . . . . . . . . . 44 . 490 1157 Highest Corruption 10 | . . . . . . 3 6 2 . . . . . . . . . . . . . 2 2 5 9 10 1 Average Corruption 3 | . . . . . . 2 4 1 . . . . . . . . . . . . . 2 2 2 2 7 1 Corruption Purged 35 | . . . . . . . 5 . . . . . . . . . . . . . . . . 8 . 22 . Corruption Blocked . | . . . . . . . . . . . . . . . . . . . . . . . . . . . . Effects 239 | . . . . . . 10 31 19 . . . . . . . . . . . . . . 2 34 24 109 10 Message Errors 58 | . . . . . . 2 5 7 . . . . . . . . . . . . . . 1 7 8 26 2 Matter Fused 59 | . . . . . . 1 5 5 . . . . . . . . . . . . . . 1 12 4 27 4 Heat Flow Errors 22 | . . . . . . 2 3 3 . . . . . . . . . . . . . . . 2 1 11 . Energy Discharges 30 | . . . . . . . 4 2 . . . . . . . . . . . . . . . 4 5 13 2 Parts Rejected 6 | . . . . . . . 1 . . . . . . . . . . . . . . . . 2 1 2 . Data Loss (minor) 30 | . . . . . . 2 7 . . . . . . . . . . . . . . . . 4 2 14 1 Data Loss (major) 8 | . . . . . . 1 2 . . . . . . . . . . . . . . . . 1 1 3 . Misfires 6 | . . . . . . 1 . . . . . . . . . . . . . . . . . . 1 4 . Alerts 7 | . . . . . . . 1 1 . . . . . . . . . . . . . . . 2 . 3 . Misdirections 2 | . . . . . . . . . . . . . . . . . . . . . . . . . . 2 . Weapon Failures 11 | . . . . . . 1 3 1 . . . . . . . . . . . . . . . . 1 4 1 Overload Shots . | . . . . . . . . . . . . . . . . . . . . . . . . . . . . Overflow Damage 4445 | . . 29 18 . . 88 19 . . 135 15 . 154 . 39 . 9 . 3 . . . 255 3401 35 100 145 Projectiles 180 | . . . . . . . . . . . . . . . . . . . . . . . . . 35 . 145 Explosions 781 | . . 29 18 . . 1 17 . . 20 . . . . . . . . 3 . . . . 693 . . . Melee 3484 | . . . . . . 87 2 . . 115 15 . 154 . 39 . 9 . . . . . 255 2708 . 100 . Knockbacks 198 | . . . . . . 1 1 . . . . . . . . . . . . . . . . . 38 130 28 Impact 2 | . . . . . . 1 1 . . . . . . . . . . . . . . . . . . . . Kinetic 182 | . . . . . . . . . . . . . . . . . . . . . . . . . 35 120 27 Secondary 14 | . . . . . . . . . . . . . . . . . . . . . . . . . 3 10 1 Self-Inflicted Damage 1257 | . 55 . 75 . . 184 102 . . . . . . . . . . 13 19 . . . . 809 . . . Shots 36 | . 1 . 2 . . 4 5 . . . . . . . . . . 1 1 . . . . 22 . . . Rammed 23 | . . . 9 . 2 5 4 3 . . . . . . . . . . . . . . . . . . . Targets Rammed 27 | . . 1 10 . 2 5 5 4 . . . . . . . . . . . . . . . . . . . Kicked 1 | . . 1 . . . . . . . . . . . . . . . . . . . . . . . . . Crushed 3 | . . . 1 . . . 1 1 . . . . . . . . . . . . . . . . . . . Highest Temperature 441 | 36 267 . 414 . 421 317 309 432 . 46 132 2 2 19 45 17 . 165 96 362 88 126 120 184 244 441 106 Average Temperature 90 | 18 97 . 50 . 97 80 130 137 . 11 40 2 2 10 33 17 . 94 67 181 24 33 61 87 93 104 35 Received Heat Transfer 1963 | . 105 . 321 . 199 331 276 144 . 36 . . . 61 . . . 21 . 18 . . . 282 72 77 20 Effects 17 | . . . 2 . 5 1 2 6 . . . . . . . . . . . . . . . . . 1 . Shutdowns 1 | . . . . . . . . 1 . . . . . . . . . . . . . . . . . . . Energy Bleed 6 | . . . 1 . 2 1 2 . . . . . . . . . . . . . . . . . . . . Interference 4 | . . . . . . . . 3 . . . . . . . . . . . . . . . . . 1 . Matter Decay 3 | . . . 1 . 1 . . 1 . . . . . . . . . . . . . . . . . . . Short Circuit 1 | . . . . . 1 . . . . . . . . . . . . . . . . . . . . . . Damage (minor) 2 | . . . . . 1 . . 1 . . . . . . . . . . . . . . . . . . . Siege Activations . | . . . . . . . . . . . . . . . . . . . . . . . . . . . . Martial Activations . | . . . . . . . . . . . . . . . . . . . . . . . . . . . . Shielding Activations . | . . . . . . . . . . . . . . . . . . . . . . . . . . . . Robots Disrupted . | . . . . . . . . . . . . . . . . . . . . . . . . . . . . Combat Hostiles . | . . . . . . . . . . . . . . . . . . . . . . . . . . . . Robots Corrupted 4 | . . . . . . 2 1 . . . . . . . . . . . . . . . . . . 1 . Combat Hostiles 2 | . . . . . . . 1 . . . . . . . . . . . . . . . . . . 1 . Parts Fried 8 | . 1 . . . . . 3 . . . . . . . . . . . . . . . . 1 . 3 . Impact Corruptions 3 | . . . . . . 2 1 . . . . . . . . . . . . . . . . . . . . Robots Melted 8 | . . . . . . . . . . . . . . . . . . . . . . . . 1 . 1 6 Combat Hostiles 8 | . . . . . . . . . . . . . . . . . . . . . . . . 1 . 1 6 Parts Melted 17 | . . . . . . . 2 . . . . . . . . . . . . . . . . 7 . 4 4 Heat Transferred 1277 | 50 100 . . . . 100 677 . . . . . . . . . . . . . . . . . 250 50 50 Parts Sabotaged 7 | . . . . . . . . . . . . . . . . . . . . . . . . . 7 . . Parts Stolen . | . . . . . . . . . . . . . . . . . . . . . . . . . . . . Parts Stripped . | . . . . . . . . . . . . . . . . . . . . . . . . . . . . Power Chain Reactions 8 | 1 2 . . . . . 5 . . . . . . . . . . . . . . . . . . . . Alert | -11 -10 -10 -9 -9 -8 -7 -7 -7 -7 -5 -5 -5 -5 -4 -4 -4 -4 -4 -3 -3 -3 -2 -2 -2 -1 -1 -1 ------- Run | Yrd Mat Min Mat Min Mat Fac Sto Rec Scr Fac Upp Upp Zhi Pro Fac Upp Upp War Pro Res Tes Res Qua Frg Acc Com Ac0 Maximum Alert Level 5 | . . . 3 1 1 1 2 1 . 1 . . . . . . . . . . . 1 1 5 5 5 . Low Security (%) 33 | 100 100 100 31 27 93 90 38 87 . 61 . . . . 100 . . . . 100 100 93 54 1 . . . Level 1 7 | . . . 17 72 6 9 19 12 . 38 . . . . . . . . . . . 6 45 4 . . . Level 2 22 | . . . 37 . . . 42 . . . . . . . . . . . . . . . . 57 . . . Level 3 2 | . . . 13 . . . . . . . . . . . . . . . . . . . . 3 . . . Level 4 . | . . . . . . . . . . . . . . . . . . . . . . . . . . . . Level 5 16 | . . . . . . . . . . . . . . . . . . . . . . . . 32 1 51 . High Security 15 | . . . . . . . . . . . . . . . . . . . . . . . . . 98 48 . Max Security . | . . . . . . . . . . . . . . . . . . . . . . . . . . . . Sterilizations 1 | . . . . . . . . . . . . . . . . . . . . . . . . . 1 . . Peak Influence 11366 | 10 73 76 823 316 224 299 676 258 . 253 . . . . 25 . . . . 131 155 242 226 7211 10939 11366 . Initial 7000 | . . 16 . 316 60 71 131 228 . . . . . . 9 . . . . 87 73 71 135 114 4326 7000 . Average 2237 | 1 22 9 419 237 92 75 337 88 . 199 . . . . 4 . . . . 99 134 116 182 1727 7268 9177 . Influence Increases 27587 | 15 148 76 1496 . 920 794 1484 305 . 437 35 . 15 45 108 . 10 135 200 124 164 281 159 8427 6703 4935 571 Destroy 0b10 Robot/C 16840 | . 80 60 880 . 620 320 780 80 . . . . . . . . . . 180 . . 20 . 5340 5000 3480 . Destroy 0b10 Robot/NC 1495 | 15 30 . 95 . 45 25 110 60 . 25 5 . 15 . 10 . 10 . . 10 . . 25 480 305 230 . Destroy Leader 2838 | . 30 10 232 . 174 100 166 . . 6 . . . . 4 . . . 20 . . . 2 810 764 520 . Allied During Kill 384 | . . . 99 . . . 269 . . . . . . . . . . . . . . . . 12 4 . . Successful Hack 431 | . 4 . 47 . 42 42 61 44 . 35 . . . . 23 . . . . 6 50 . 45 18 14 . . Select Force Hacks 120 | . . . . . . . . 120 . . . . . . . . . . . . . . . . . . . Disable Machine 1215 | . . . 60 . . 165 60 . . 120 . . . . . . . . . . 45 30 45 435 15 60 180 Anti-Garrison Action 150 | . . . . . . . . . . . . . . . . . . . . . . . . 150 . . . Destroy Structure 2149 | . 4 6 53 . 9 97 23 1 . 146 . . . . 56 . . . . 18 24 51 12 822 151 330 346 Partial Spotted 405 | . . . . . . . . . . 30 . . . . 15 . . . . 90 45 60 . 90 15 15 45 Lose Combat Pursuer 1560 | . . . 30 . 30 45 15 . . 75 30 . . 45 . . . 135 . . . 120 30 270 435 300 . Influence Decreases 27036 | 15 105 119 685 655 919 660 1188 892 . 206 137 115 29 30 123 . 10 36 169 123 168 166 197 1420 2975 4301 11593 Entered New Map 20205 | . . 27 . 495 96 86 160 359 . . 87 25 14 . 6 . . . 99 43 58 56 107 90 2885 3939 11573 Time Decay 5140 | 15 95 92 655 160 624 412 518 533 . 206 50 70 15 30 117 . 10 36 70 70 100 90 80 770 20 302 . Lost Part 230 | . 10 . 10 . . 20 50 . . . . . . . . . . . . 10 . . . 80 30 . 20 Lost Ally 830 | . . . 20 . 10 . 160 . . . . 20 . . . . . . . . 10 20 10 480 40 60 . Purge Threat 631 | . . . . . 189 142 300 . . . . . . . . . . . . . . . . . . . . Squads Dispatched 172 | . . . 5 . 3 9 8 . . 6 . . . . 6 . . . . 3 . 3 2 9 80 38 . Investigation 16 | . . . . . . . . . . 4 . . . . 5 . . . . 2 . 1 . 4 . . . Extermination 13 | . . . . . . 2 3 . . 2 . . . . 1 . . . . . . 1 2 . . 2 . Reinforcement 20 | . . . 3 . 2 4 3 . . . . . . . . . . . . 1 . 1 . 3 3 . . Assault 116 | . . . 2 . . . 2 . . . . . . . . . . . . . . . . 2 74 36 . Garrison 7 | . . . . . 1 3 . . . . . . . . . . . . . . . . . . 3 . . Intercept . | . . . . . . . . . . . . . . . . . . . . . . . . . . . . Searches Triggered . | . . . . . . . . . . . . . . . . . . . . . . . . . . . . Construction Impeded 1 | . . . . . . . . . . . . . . . . . . . . . . . . . 1 . . Haulers Reinforced 3 | . . . . . . 2 1 . . . . . . . . . . . . . . . . . . . . Active Scanning Responses . | . . . . . . . . . . . . . . . . . . . . . . . . . . . . Cargo Convoy Interrupts . | . . . . . . . . . . . . . . . . . . . . . . . . . . . . Stealth | -11 -10 -10 -9 -9 -8 -7 -7 -7 -7 -5 -5 -5 -5 -4 -4 -4 -4 -4 -3 -3 -3 -2 -2 -2 -1 -1 -1 --------- Run | Yrd Mat Min Mat Min Mat Fac Sto Rec Scr Fac Upp Upp Zhi Pro Fac Upp Upp War Pro Res Tes Res Qua Frg Acc Com Ac0 Distress Signals 48 | . . . 4 . 2 3 3 . . . . . . . . . . 1 . . . 2 . 17 3 13 . Communications Jammed 3 | . . . . . . . . . . . . . . . . . . . . . . . . 3 . . . Distress Signals 3 | . . . . . . . . . . . . . . . . . . . . . . . . 3 . . . Times Spotted 1347 | . 7 3 63 . 45 20 47 4 . 6 2 . . 3 1 . . 54 7 10 6 19 6 383 353 244 64 Peak Tracking Total 30 | . 2 3 6 . 4 5 12 1 . 5 2 . . 3 1 . . 17 4 10 4 10 3 14 30 12 5 Tactical Retreats 61 | . . . 2 . 1 2 1 . . 3 1 . . 1 . . . 4 . . . 3 1 11 15 16 . Traps | -11 -10 -10 -9 -9 -8 -7 -7 -7 -7 -5 -5 -5 -5 -4 -4 -4 -4 -4 -3 -3 -3 -2 -2 -2 -1 -1 -1 ------- Run | Yrd Mat Min Mat Min Mat Fac Sto Rec Scr Fac Upp Upp Zhi Pro Fac Upp Upp War Pro Res Tes Res Qua Frg Acc Com Ac0 Traps Triggered 19 | . . . . . . . 4 . . 1 . . . . 2 . . . . 1 . 2 . 9 . . . Indirectly . | . . . . . . . . . . . . . . . . . . . . . . . . . . . . Trap Hack Attempts . | . . . . . . . . . . . . . . . . . . . . . . . . . . . . Triggered . | . . . . . . . . . . . . . . . . . . . . . . . . . . . . Disarmed . | . . . . . . . . . . . . . . . . . . . . . . . . . . . . Reprogrammed . | . . . . . . . . . . . . . . . . . . . . . . . . . . . . Reused . | . . . . . . . . . . . . . . . . . . . . . . . . . . . . Traps Extracted . | . . . . . . . . . . . . . . . . . . . . . . . . . . . . Installed . | . . . . . . . . . . . . . . . . . . . . . . . . . . . . Triggered . | . . . . . . . . . . . . . . . . . . . . . . . . . . . . Machines | -11 -10 -10 -9 -9 -8 -7 -7 -7 -7 -5 -5 -5 -5 -4 -4 -4 -4 -4 -3 -3 -3 -2 -2 -2 -1 -1 -1 ---------- Run | Yrd Mat Min Mat Min Mat Fac Sto Rec Scr Fac Upp Upp Zhi Pro Fac Upp Upp War Pro Res Tes Res Qua Frg Acc Com Ac0 Machines Disabled 91 | . . . 4 . . 11 4 . . 8 1 . . . . . . 1 . . 3 2 3 33 5 4 12 Max in Single Turn 6 | . . . 2 . . 6 1 . . 6 1 . . . . . . 1 . . 1 1 1 3 1 1 1 Garrison Access 5 | . . . . . 1 . . . . . . . . . . . . . . 1 1 1 . 1 . . . Machines Repaired . | . . . . . . . . . . . . . . . . . . . . . . . . . . . . Machines Dismantled 1 | . . . . . . . . . . . . . . . . . . 1 . . . . . . . . . Machines Sabotaged . | . . . . . . . . . . . . . . . . . . . . . . . . . . . . Overloaded Fab Kills . | . . . . . . . . . . . . . . . . . . . . . . . . . . . . Hacking | -11 -10 -10 -9 -9 -8 -7 -7 -7 -7 -5 -5 -5 -5 -4 -4 -4 -4 -4 -3 -3 -3 -2 -2 -2 -1 -1 -1 --------- Run | Yrd Mat Min Mat Min Mat Fac Sto Rec Scr Fac Upp Upp Zhi Pro Fac Upp Upp War Pro Res Tes Res Qua Frg Acc Com Ac0 Machines Accessed 118 | . 2 . 12 . 13 8 7 11 4 12 1 1 4 . 8 . 1 1 . 8 8 3 7 4 1 1 1 Terminals 55 | . 2 . 6 . 9 5 4 6 . 5 . . . . 1 . . . . 4 4 1 6 . 1 1 . Fabricators 7 | . . . . . . 1 . . . 2 . . . . 2 . . . . . 1 . . 1 . . . Repair Stations 6 | . . . 2 . 1 . 2 . . . . . . . . . . . . . . . 1 . . . . Recycling Units 23 | . . . 2 . 1 . 1 5 . 4 . . . . 5 . . . . 2 . 1 . 2 . . . Scanalyzers 8 | . . . 2 . 1 1 . . . 1 . . . . . . . . . 1 2 . . . . . . Garrison Access 6 | . . . . . 1 1 . . . . . . . . . . . . . 1 1 1 . 1 . . . Total Hacks 332 | . 5 . 40 . 40 18 26 32 11 23 1 4 17 . 17 . 1 1 . 26 27 3 21 11 4 1 3 Successful 184 | . 2 . 21 . 24 7 13 14 11 10 1 4 17 . 10 . 1 1 . 13 19 2 8 2 1 . 3 Failed 147 | . 3 . 19 . 15 11 13 18 . 13 . . . . 7 . . . . 13 8 1 13 9 3 1 . Catastrophic 18 | . . . . . 1 2 2 2 . 3 . . . . . . . . . 1 . 1 2 2 1 1 . Database Lockouts 1 | . . . . . 1 . . . . . . . . . . . . . . . . . . . . . . Manual 153 | . 3 . 14 . 23 2 10 26 . 18 . . . . 11 . . . . 13 10 2 12 7 2 . . Terminals 173 | . 5 . 22 . 31 10 14 19 . 15 . . . . 4 . . . . 18 12 1 17 . 4 1 . Fabricators 19 | . . . . . . 2 . . . 3 . . . . 6 . . . . . 6 . . 2 . . . Repair Stations 26 | . . . 7 . 6 . 9 . . . . . . . . . . . . . . . 4 . . . . Recycling Units 43 | . . . 3 . 1 . 3 13 . 4 . . . . 7 . . . . 6 . 1 . 5 . . . Scanalyzers 23 | . . . 8 . 1 4 . . . 1 . . . . . . . . . 1 8 . . . . . . Garrison Access 10 | . . . . . 1 2 . . . . . . . . . . . . . 1 1 1 . 4 . . . Terminal Hacks 80 | . 2 . 3 . 11 5 5 . 11 2 1 4 17 . 1 . 1 1 . 7 2 . 4 . . . 3 Record 19 | . . . . . . . . . 9 . 1 4 5 . . . . . . . . . . . . . . Part Schematic 4 | . . . . . . . . . . . . . 4 . . . . . . . . . . . . . . Robot Analysis 8 | . 1 . 1 . 1 1 . . . . . . 4 . . . . . . . . . . . . . . Prototype ID Bank 6 | . . . . . 1 . . . . . . . 4 . . . . . . 1 . . . . . . . Open Door 3 | . . . . . . . . . 1 . . . . . . . 1 1 . . . . . . . . . Branch Access Points 4 | . . . . . 1 1 . . . 1 . . . . . . . . . 1 . . . . . . . Recycling Unit Index 2 | . . . . . . . . . . 1 . . . . . . . . . 1 . . . . . . . Unreport Threat 6 | . . . . . 3 1 2 . . . . . . . . . . . . . . . . . . . . Locate Traps 11 | . 1 . 2 . 1 . 3 . . . . . . . 1 . . . . 1 1 . 1 . . . . Recall Investigation 1 | . . . . . . . . . . . . . . . . . . . . 1 . . . . . . . Hauler Manifests 1 | . . . . . 1 . . . . . . . . . . . . . . . . . . . . . . Registered Components 1 | . . . . . 1 . . . . . . . . . . . . . . . . . . . . . . Zone Layout 10 | . . . . . 2 2 . . . . . . . . . . . . . 2 1 . 3 . . . . Proto ID Catalog 1 | . . . . . . . . . 1 . . . . . . . . . . . . . . . . . . Gate Test 138-A 1 | . . . . . . . . . . . . . . . . . . . . . . . . . . . 1 Gate Test 138-B 1 | . . . . . . . . . . . . . . . . . . . . . . . . . . . 1 Gate Test 138-C 1 | . . . . . . . . . . . . . . . . . . . . . . . . . . . 1 Fabricator Hacks 6 | . . . . . . . . . . 1 . . . . 2 . . . . . 3 . . . . . . Network Status 5 | . . . . . . . . . . 1 . . . . 2 . . . . . 2 . . . . . . Build 1 | . . . . . . . . . . . . . . . . . . . . . 1 . . . . . . Repair Station Hacks 16 | . . . 6 . 4 . 5 . . . . . . . . . . . . . . . 1 . . . . Scan Component 8 | . . . 3 . 2 . 3 . . . . . . . . . . . . . . . . . . . . Repair 7 | . . . 3 . 2 . 2 . . . . . . . . . . . . . . . . . . . . Refit 1 | . . . . . . . . . . . . . . . . . . . . . . . 1 . . . . Recycling Unit Hacks 6 | . . . 2 . . . . 3 . . . . . . . . . . . 1 . . . . . . . Retrieve Components 6 | . . . 2 . . . . 3 . . . . . . . . . . . 1 . . . . . . . Scanalyzer 13 | . . . 3 . . 2 . . . 1 . . . . . . . . . 1 6 . . . . . . Insert Component 2 | . . . . . . . . . . . . . . . . . . . . . 2 . . . . . . Analyze 3 | . . . . . . . . . . . . . . . . . . . . . 3 . . . . . . Retrieve Study 8 | . . . 3 . . 2 . . . 1 . . . . . . . . . 1 1 . . . . . . Garrison Access Hacks 4 | . . . . . 1 . . . . . . . . . . . . . . 1 1 1 . . . . . Seal Access 4 | . . . . . 1 . . . . . . . . . . . . . . 1 1 1 . . . . . Unauthorized Hacks 59 | . . . 7 . 8 . 3 11 . 6 . . . . 7 . . . . 3 7 1 3 2 1 . . Terminals 36 | . . . 7 . 8 . 3 7 . 1 . . . . . . . . . 1 5 . 3 . 1 . . Track 2 | . . . . . . . . . . . . . . . . . . . . . 2 . . . . . . Assimilate 3 | . . . . . 1 . . . . . . . . . . . . . . . 1 . 1 . . . . Botnet 12 | . . . 2 . 2 . 1 1 . 1 . . . . . . . . . 1 1 . 2 . 1 . . Disrupt 1 | . . . . . . . . . . . . . . . . . . . . . 1 . . . . . . Skim 18 | . . . 5 . 5 . 2 6 . . . . . . . . . . . . . . . . . . . Fabricators 6 | . . . . . . . . . . 1 . . . . 2 . . . . . 2 . . 1 . . . Prioritize 1 | . . . . . . . . . . . . . . . . . . . . . 1 . . . . . . Liberate 2 | . . . . . . . . . . 1 . . . . . . . . . . . . . 1 . . . Fabnet 3 | . . . . . . . . . . . . . . . 2 . . . . . 1 . . . . . . Repair Stations . | . . . . . . . . . . . . . . . . . . . . . . . . . . . . Recycling Units 17 | . . . . . . . . 4 . 4 . . . . 5 . . . . 2 . 1 . 1 . . . Tunnel 4 | . . . . . . . . 4 . . . . . . . . . . . . . . . . . . . Fedlink 13 | . . . . . . . . . . 4 . . . . 5 . . . . 2 . 1 . 1 . . . Scanalyzers . | . . . . . . . . . . . . . . . . . . . . . . . . . . . . Garrison Access . | . . . . . . . . . . . . . . . . . . . . . . . . . . . . Data Cores Recovered 4 | . . . . . 1 . . . . . . . . . . . . . . . . . . . . 3 . Used . | . . . . . . . . . . . . . . . . . . . . . . . . . . . . Hacking Detections 73 | . 1 . 10 . 11 8 7 8 . 6 . . . . 2 . . . . 5 3 1 6 3 1 1 . Full Trace Events 7 | . . . 1 . . . . 4 . . . . . . . . . . . . . . . 2 . . . Feedback Events 1 | . . . . . . . . 1 . . . . . . . . . . . . . . . . . . . Corruption 1 | . . . . . . . . 1 . . . . . . . . . . . . . . . . . . . Feedback Blocked . | . . . . . . . . . . . . . . . . . . . . . . . . . . . . Robot Schematics Acquired 3 | . . . . . . . . . . . . . . . . . . . . . . . . 3 . . . Robots Built . | . . . . . . . . . . . . . . . . . . . . . . . . . . . . Authchips . | . . . . . . . . . . . . . . . . . . . . . . . . . . . . Time . | . . . . . . . . . . . . . . . . . . . . . . . . . . . . Total Robot Build Rating . | . . . . . . . . . . . . . . . . . . . . . . . . . . . . Part Schematics Acquired 15 | . . . . . . . . . . . . . 4 . . . . . . . 1 . . 10 . . . Parts Built 1 | . . . . . . . . . . . . . . . . . . . . . 1 . . . . . . Authchips . | . . . . . . . . . . . . . . . . . . . . . . . . . . . . Time 222 | . . . . . . . . . . . . . . . . . . . . . 222 . . . . . . Total Part Build Rating 9 | . . . . . . . . . . . . . . . . . . . . . 9 . . . . . . Part Studies Acquired 8 | . . . 3 . . 2 . . . 1 . . . . . . . . . 1 1 . . . . . . Parts Repaired 7 | . . . 3 . 2 . 2 . . . . . . . . . . . . . . . . . . . . Time 293 | . . . 115 . 89 . 89 . . . . . . . . . . . . . . . . . . . . Parts Recycled . | . . . . . . . . . . . . . . . . . . . . . . . . . . . . Recycled Matter . | . . . . . . . . . . . . . . . . . . . . . . . . . . . . Retrieved Matter . | . . . . . . . . . . . . . . . . . . . . . . . . . . . . Retrieved Components 15 | . . . 6 . . . . 7 . . . . . . . . . . . 2 . . . . . . . Parts Scanalyzed 1 | . . . . . . . . . . . . . . . . . . . . . 1 . . . . . . Part Schematics Acquired 1 | . . . . . . . . . . . . . . . . . . . . . 1 . . . . . . Parts Damaged . | . . . . . . . . . . . . . . . . . . . . . . . . . . . . Bothacking | -11 -10 -10 -9 -9 -8 -7 -7 -7 -7 -5 -5 -5 -5 -4 -4 -4 -4 -4 -3 -3 -3 -2 -2 -2 -1 -1 -1 ------------ Run | Yrd Mat Min Mat Min Mat Fac Sto Rec Scr Fac Upp Upp Zhi Pro Fac Upp Upp War Pro Res Tes Res Qua Frg Acc Com Ac0 Used RIF Installer . | . . . . . . . . . . . . . . . . . . . . . . . . . . . . Robots Hacked 50 | . . . . . . . . . . 1 . . . . 1 . . . . . . 1 . 39 2 6 . Non-combat 2 | . . . . . . . . . . 1 . . . . 1 . . . . . . . . . . . . Combat 48 | . . . . . . . . . . . . . . . . . . . . . . 1 . 39 2 6 . Robot Hacks Applied 2 | . . . . . . . . . . 1 . . . . 1 . . . . . . . . . . . . find_chute 2 | . . . . . . . . . . 1 . . . . 1 . . . . . . . . . . . . Relay Couplers Released 2 | . . . . . . . . . . . . . . . . . . . . . . . . 2 . . . Machine Destruction 2 | . . . . . . . . . . . . . . . . . . . . . . . . 2 . . . Fabnet Peak Effective % 6 | . . . . . . . . . . . . . . . . . . . 6 6 6 5 5 5 1 1 1 Autooverrided 48 | . . . . . . . . . . . . . . . . . . . . . . 1 . 39 2 6 . Robots Rewired . | . . . . . . . . . . . . . . . . . . . . . . . . . . . . Allies Hacked 6 | . . . . . . . . . . . . . . . . . . . . . . . . 5 . 1 . Hacks Repelled . | . . . . . . . . . . . . . . . . . . . . . . . . . . . . Allies | -11 -10 -10 -9 -9 -8 -7 -7 -7 -7 -5 -5 -5 -5 -4 -4 -4 -4 -4 -3 -3 -3 -2 -2 -2 -1 -1 -1 -------- Run | Yrd Mat Min Mat Min Mat Fac Sto Rec Scr Fac Upp Upp Zhi Pro Fac Upp Upp War Pro Res Tes Res Qua Frg Acc Com Ac0 Total Allies 69 | . . 3 . . 1 . 12 . . . . 2 . . . . . . . . 1 1 1 40 2 6 . Largest Group 12 | . . 3 3 . 1 . 12 . . . . 2 . . . . . . . . 1 1 1 3 1 4 . Highest-Rated Group 230 | . . 40 40 . 10 . 230 . . . . 40 . . . . . . . . 10 58 45 203 13 228 . Highest-Rated Ally 82 | . . 16 16 . 10 . 31 . . . . 20 . . . . . . . . 10 58 45 82 13 82 . Total Orders . | . . . . . . . . . . . . . . . . . . . . . . . . . . . . Ally Attacks 193 | . . . 44 . . . 80 . . . . . . . . . . . . . . 2 . 51 1 15 . Total Damage 3422 | . . . 413 . . . 906 . . . . . . . . . . . . . . 90 . 1677 . 336 . Kills 25 | . . . 8 . . . 9 . . . . . . . . . . . . . . 1 . 5 . 2 . Allies Corrupted 2 | . . . . . . . . . . . . . . . . . . . . . . . . 2 . . . Allies Melted 3 | . . . . . . . . . . . . . . . . . . . . . . . . 3 . . . Intel | -11 -10 -10 -9 -9 -8 -7 -7 -7 -7 -5 -5 -5 -5 -4 -4 -4 -4 -4 -3 -3 -3 -2 -2 -2 -1 -1 -1 ------- Run | Yrd Mat Min Mat Min Mat Fac Sto Rec Scr Fac Upp Upp Zhi Pro Fac Upp Upp War Pro Res Tes Res Qua Frg Acc Com Ac0 Active Infowar (turns) 20481 | 14 354 680 87 2 . 1118 . . 287 424 117 141 87 146 368 195 194 233 199 154 215 199 177 7571 2401 3719 1399 Optics 15816 | . . . . . . . . . . . . . . . . . . . . 135 215 199 177 7571 2401 3719 1399 Sensors 3039 | . . . . 2 . . . . 287 424 117 141 87 146 368 195 194 227 179 146 124 186 164 52 . . . Structural 4395 | . . . . . . 1118 . . 285 424 117 141 84 146 368 192 194 233 198 154 215 199 177 150 . . . Seismic 1135 | 14 354 680 87 . . . . . . . . . . . . . . . . . . . . . . . . Cloaking 5058 | . . . . . . . . . . . . . . . . . . . . . . . . 3023 2035 . . Jamming 45 | . . . . . . . . . . . . . . . . . . . . . . . 1 44 . . . Robot Analysis Total 8 | . 1 . 1 . 1 1 . . . . . . 4 . . . . . . . . . . . . . . Derelict Logs Recovered 4 | . . 1 . . . . . . . . . . . 1 . 1 1 . . . . . . . . . . Drone Launches . | . . . . . . . . . . . . . . . . . . . . . . . . . . . . Drone Recoveries . | . . . . . . . . . . . . . . . . . . . . . . . . . . . . Exploration | -11 -10 -10 -9 -9 -8 -7 -7 -7 -7 -5 -5 -5 -5 -4 -4 -4 -4 -4 -3 -3 -3 -2 -2 -2 -1 -1 -1 ------------- Run | Yrd Mat Min Mat Min Mat Fac Sto Rec Scr Fac Upp Upp Zhi Pro Fac Upp Upp War Pro Res Tes Res Qua Frg Acc Com Ac0 Turns Passed 31165 | 93 354 680 2680 330 2305 1428 1432 1597 1625 424 117 141 87 146 368 195 194 934 200 154 215 199 177 7571 2401 3719 1399 Spaces Moved 34251 | 54 213 544 1187 164 933 573 505 937 1232 1224 305 529 218 432 926 384 514 1798 551 524 752 603 592 10332 2046 3222 2957 Core 21 | 18 . . . . . . . . . . . . . . . . . . . . . . . 3 . . . Treads 3807 | . . . 1187 164 933 573 505 445 . . . . . . . . . . . . . . . . . . . Legs 793 | 36 213 544 . . . . . . . . . . . . . . . . . . . . . . . . . Wheels 1724 | . . . . . . . . 492 1232 . . . . . . . . . . . . . . . . . . Hover 10024 | . . . . . . . . . . . . . . . . . . . . . . . . 1799 2046 3222 2957 Flight 17882 | . . . . . . . . . . 1224 305 529 218 432 926 384 514 1798 551 524 752 603 592 8530 . . . Fastest Speed 5 | 50 120 120 160 200 200 200 200 115 115 21 24 24 24 14 6 6 24 6 6 6 6 5 6 5 33 33 33 Average Speed 50 | 122 120 120 178 200 200 200 200 156 115 23 24 24 24 23 23 23 24 21 24 17 18 21 19 20 33 34 33 Slowest Speed 250 | 250 120 120 200 200 200 200 240 205 115 24 24 24 24 24 24 24 24 24 25 97 21 100 21 150 40 88 33 Overloaded Moves 374 | . . . . . . . . . . . . . . 6 7 4 . 30 12 44 14 48 18 191 . . . Propulsion Burnouts . | . . . . . . . . . . . . . . . . . . . . . . . . . . . . Robots Hopped 54 | . . . . . . . . . . 3 . . . 3 11 2 . 4 . 4 8 7 4 8 . . . Potential Cave-ins . | . . . . . . . . . . . . . . . . . . . . . . . . . . . . Cave-ins Triggered . | . . . . . . . . . . . . . . . . . . . . . . . . . . . . Teleports 2 | . . . . . . . . . . . . . . . . . . . . . . . . . . 1 1 Exploration Rate (%) 61 | 4 34 95 97 27 77 21 91 98 86 38 56 76 61 59 26 61 70 94 68 22 91 28 73 88 23 53 95 Regions Visited 27 Branch Regions 18 Pre-discovered Areas 17 | . . 1 2 . 2 . . 4 2 1 . 1 3 . . . 1 . . . . . . . . . . Known Exits Taken 20 | . . . . 1 1 1 . 1 1 1 1 1 1 1 1 1 1 1 1 1 1 1 1 1 . . . Unknown Exits Taken 7 | 1 1 1 1 . . . 1 . . . . . . . . . . . . . . . . . 1 1 . Scrap Searched 17 | . . 2 . . . . . . 5 . 1 3 . 1 . 1 2 . 2 . . . . . . . . Spaces Dug 374 | . . . 12 . 5 24 2 . . 17 10 5 . 16 28 23 8 64 53 9 13 18 4 12 5 7 39 Terrain Destroyed 1948 | 3 3 6 51 . 5 117 14 . . 81 10 5 . 16 28 23 8 83 101 9 13 18 4 1102 49 114 85 Melee 218 | . . . . . 1 8 2 . . 14 4 5 . 13 25 16 7 64 12 8 10 15 4 5 5 . . Projectile 100 | . . . . . . . . . . 3 6 . . 3 3 7 1 . 1 1 3 3 . 8 8 7 46 AOE 1448 | 3 3 6 51 . 4 109 12 . . 64 . . . . . . . 19 88 . . . . 1089 . . . Terrain Rammed . | . . . . . . . . . . . . . . . . . . . . . . . . . . . . Walls Destroyed . | . . . . . . . . . . . . . . . . . . . . . . . . . . . . Machines Disabled . | . . . . . . . . . . . . . . . . . . . . . . . . . . . . Actions | -11 -10 -10 -9 -9 -8 -7 -7 -7 -7 -5 -5 -5 -5 -4 -4 -4 -4 -4 -3 -3 -3 -2 -2 -2 -1 -1 -1 --------- Run | Yrd Mat Min Mat Min Mat Fac Sto Rec Scr Fac Upp Upp Zhi Pro Fac Upp Upp War Pro Res Tes Res Qua Frg Acc Com Ac0 Total 45333 | 70 271 565 1518 166 1208 722 756 1023 1442 1302 330 535 242 450 1006 455 566 2229 590 563 803 635 624 15235 3288 5481 3258 Wait 7454 | 2 22 14 140 . 124 28 86 35 192 7 3 . . . 26 38 38 321 9 21 11 3 4 3851 709 1753 17 Move 34124 | 53 212 543 1186 163 932 572 504 936 1231 1217 304 528 217 427 903 379 513 1790 550 515 737 588 585 10317 2045 3221 2956 Hop 44 | . . . . . . . . . . 3 . . . 1 11 2 . 3 . 4 6 7 2 5 . . . Pick Up 270 | 4 8 1 24 1 11 6 13 1 4 4 1 . 7 . . . 1 9 . 2 5 2 4 126 6 23 7 Fast Attach 128 | 7 . . 6 . 8 . 18 4 3 2 . . 5 . . 2 . 5 . 4 8 4 2 33 3 7 7 Attach 156 | . 2 . 4 . 2 6 5 1 4 14 3 . . 3 5 5 1 7 6 3 2 5 2 52 13 8 3 Detach 72 | . . . . . 1 1 . . . 5 3 . . 3 3 5 1 4 6 1 4 3 1 27 2 2 . Swap 511 | 1 3 2 28 2 19 41 19 1 . 1 . 1 1 . 2 . . 2 1 . 2 2 3 154 69 85 72 Drop 314 | . 3 . 21 . 23 8 23 12 8 11 1 1 6 . 1 1 . 11 . 1 12 1 6 134 1 21 8 Fire 1585 | 3 21 4 99 . 85 45 73 29 . 5 6 . . 3 3 7 1 3 6 1 3 3 . 283 434 304 164 Melee 538 | . . . . . 1 10 6 . . 33 9 5 6 13 37 16 11 66 12 11 13 17 15 190 6 37 24 Ram . | . . . . . . . . . . . . . . . . . . . . . . . . . . . . Kick 1 | . . 1 . . . . . . . . . . . . . . . . . . . . . . . . . Crush 26 | . . . 10 . 2 5 5 4 . . . . . . . . . . . . . . . . . . . Escape Stasis 92 | . . . . . . . 4 . . . . . . . 15 . . . . . . . . 53 . 20 . Rewire . | . . . . . . . . . . . . . . . . . . . . . . . . . . . . Trap . | . . . . . . . . . . . . . . . . . . . . . . . . . . . . Miscellaneous 18 | . . . . . . . . . . . . . . . . . . 8 . . . . . 10 . . . Route ------- -11/Scrapyard -10/Materials (discovered 2 exits: *Mat / [*Min]) -10/Mines (discovered 2 exits: *Mat x2) -9/Materials (discovered 4 exits: *Mat x3 / [*Min]) -9/Mines (discovered 3 exits: *Mat / [*Exi] / [*Zio]) -8/Materials (discovered 3 exits: *Fac x3) -7/Factory (discovered 6 exits: *Fac x2 / *Sto x2 / *Low x2) -7/Storage (discovered 2 exits: *Fac / *Rec) -7/Recycling (discovered 2 exits: *Fac / *Scr) -7/Scraptown (discovered 2 exits: *Fac x2) -5/Factory (discovered 3 exits: *Fac / *Upp x2) -5/Upper Caves -5/Upper Caves (discovered 2 exits: *Fac / *Zhi) -5/Zhirov -4/Proximity Caves -4/Factory (discovered 3 exits: *Res / *Upp / Ext) -4/Upper Caves -4/Upper Caves -4/Warlord -3/Proximity Caves -3/Research (discovered 4 exits: *Res / Arm / *Tes x2) -3/Testing -2/Research (discovered 2 exits: *Acc / *Qua) -2/Quarantine (discovered 3 exits: *Acc / [*Sec] / *Frg) -2/Protoforge -1/Access -1/Command (discovered 3 exits: [*Sur x2] / *Ac0) -1/Access_0 0b11 Command History --------- Turn | Location | Event 5 | -11/Scrapyard | Discovered new exit (range 16) 94 | -11/Scrapyard | Entered Materials 168 | -10/Materials | Discovered new exit (range 14) 248 | -10/Materials | Discovered new exit (range 11) 315 | -10/Materials | Build established: Mutant 448 | -10/Materials | Entered Mines 471 | -10/Mines | Discovered new exit (range 6) 612 | -10/Mines | Discovered new exit (range 10) 775 | -10/Mines | Learned location of Zion (-7) 840 | -10/Mines | A weapon hastily lodged in a ceiling crevice suddenly fell to the ground 936 | -10/Mines | Assisted by bots powering up and referring to "LRC-V3" 1128 | -10/Mines | Entered Materials 1128 | -9/Materials | Accompanied by 3 allies 1128 | -9/Materials | Evolved 2 slots: Propulsion x1, Weapon x1 1513 | -9/Materials | Discovered new exit (range 8) 1787 | -9/Materials | Build established: Scavenger-Tank 1819 | -9/Materials | Discovered new exit (range 8) 2365 | -9/Materials | Discovered new exit (range 6) 2408 | -9/Materials | Learned location of Mines (-9) 2488 | -9/Materials | Loaded intel: 18 trap records 2623 | -9/Materials | Learned 4 Recycling zone layouts 2653 | -9/Materials | Repaired Hvy. Assault Rifle+ 2676 | -9/Materials | Identified exit to Materials 2706 | -9/Materials | Repaired Imp. Assault Rifle 2728 | -9/Materials | First assault squad dispatched 2749 | -9/Materials | Learned Storage stockpile data 2792 | -9/Materials | Loaded intel: 16 interactive machine locations 2844 | -9/Materials | Learned Materials trap positions 2907 | -9/Materials | Learned location of 1 exit from Recycling 3321 | -9/Materials | Repaired Hvy. Assault Rifle+ 3808 | -9/Materials | Entered Mines 3815 | -9/Mines | A Derelict revealed a hidden shortcut to a safe place 3852 | -9/Mines | Discovered exit to Materials (range 10) 3994 | -9/Mines | Found a damaged Exp. Sensor Array with a note attached 3998 | -9/Mines | Found Prototype Device 3999 | -9/Mines | Identified Exp. Sensor Array 4036 | -9/Mines | Deemed a non-threat by the Exiles lab entrance 4036 | -9/Mines | Discovered new exit (range 5) 4138 | -9/Mines | Entered Materials 4138 | -8/Materials | Evolved 2 slots: Utility x2 4139 | -8/Materials | Loaded intel: 24 trap records 4890 | -8/Materials | Discovered new exit (range 14) 5165 | -8/Materials | Learned location of 1 exit from Recycling 5271 | -8/Materials | Identified exit to Factory 5272 | -8/Materials | Build established: Tank 5309 | -8/Materials | Learned Factory trap positions 5337 | -8/Materials | Learned 2 Storage zone layouts 5381 | -8/Materials | Learned Storage emergency access door positions 5407 | -8/Materials | Learned location of Extension (-4) 5758 | -8/Materials | Central database locked down 5805 | -8/Materials | Garrison activated, responded to threat 6295 | -8/Materials | Repaired Hrd. Medium Armor Plating 6348 | -8/Materials | Repaired Imp. Assault Rifle 6443 | -8/Materials | Entered Factory 6443 | -7/Factory | Evolved 2 slots: Propulsion x1, Utility x1 6444 | -7/Factory | Identified exit to Lower Caves 6445 | -7/Factory | Loaded intel: 82 trap records 6859 | -7/Factory | Identified exit to Storage 7112 | -7/Factory | Garrison activated, responded to threat 7195 | -7/Factory | Discovered new exit (range 14) 7289 | -7/Factory | Build established: Scavenger-Tank 7563 | -7/Factory | Discovered new exit (range 7) 7871 | -7/Factory | Entered Storage 7872 | -7/Storage | Identified exit to Factory 8081 | -7/Storage | Repaired Imp. Assault Rifle 8120 | -7/Storage | Repaired Hrd. Medium Armor Plating 8286 | -7/Storage | Destroyed 7 combat bots 8397 | -7/Storage | Assisted by bots powering up and referring to "LRC-V3" 8628 | -7/Storage | Met a pair of Derelict thieves 8682 | -7/Storage | Build established: Commander-Tank 8694 | -7/Storage | Door terminal overloaded 8709 | -7/Storage | P-60 Hacker assimilated allied Trooper 4f 8747 | -7/Storage | Found Rocket Array 8750 | -7/Storage | Lost 3 parts (2u1w) 8751 | -7/Storage | Lost 8 allies 8760 | -7/Storage | Destroyed 9 combat bots 8993 | -7/Storage | Build established: Tank 9297 | -7/Storage | Used back door to open Recycling access 9297 | -7/Storage | Discovered new exit (range 4) 9303 | -7/Storage | Entered Recycling 9304 | -7/Recycling | Identified exit to Scraptown 9304 | -7/Recycling | Identified exit to Factory 10627 | -7/Recycling | Build established: Scavenger-Gunner 10871 | -7/Recycling | Scanned before Scraplab entrance 10887 | -7/Recycling | Entered Scraplab 10900 | -7/Recycling | Entered Scraptown 10900 | -7/Scraptown | System corruption cleaned by C-Scrubber 11071 | -7/Scraptown | Visited Cave Peace 11089 | -7/Scraptown | Visited Cyclists 11172 | -7/Scraptown | Build established: Scavenger-Mutant 11293 | -7/Scraptown | Discovered exit to Factory (range 5) 11346 | -7/Scraptown | Heard Great Nut preacher, LISTEN AND RECITE! 11420 | -7/Scraptown | Visited Shadow of the Wyrm 11447 | -7/Scraptown | Visited Assassins FH 11504 | -7/Scraptown | Visited UFD Registry 11504 | -7/Scraptown | Registered with UFD as "Boltlauncher" 11523 | -7/Scraptown | Visited The Evicted 11541 | -7/Scraptown | Visited Junk Repository 11576 | -7/Scraptown | Visited Spacefarers 11652 | -7/Scraptown | Entered Cyclist Reading Room 11736 | -7/Scraptown | Visited A0-MCA Data Center 11743 | -7/Scraptown | Given a C rating by A0-MCA 11745 | -7/Scraptown | Found A0-MCA's Component Scanner 11769 | -7/Scraptown | Visited Scrapoid Pod Storage 11789 | -7/Scraptown | Visited Sword Containment 11897 | -7/Scraptown | Visited Scrap Suit Storage 11914 | -7/Scraptown | Visited Supply Room 11933 | -7/Scraptown | Visited Infowarlord's Domain 11939 | -7/Scraptown | Found Exp. Signal Interpreter 11961 | -7/Scraptown | Visited Scrapoid Research Area 11984 | -7/Scraptown | Visited Science Guys 12021 | -7/Scraptown | Visited DA-N13 Charitable Foundation 12034 | -7/Scraptown | Found DCF Scrap (26 items) 12055 | -7/Scraptown | Visited Curators Association 12148 | -7/Scraptown | Found Prototype Slashing Weapon 12148 | -7/Scraptown | Identified Companion Sword 12198 | -7/Scraptown | Discovered exit to Factory (range 3) 12460 | -7/Scraptown | Met Optimus 12460 | -7/Scraptown | Accepted into 0bPrime 12525 | -7/Scraptown | Entered Factory 12525 | -5/Factory | Evolved 4 slots: Propulsion x2, Utility x2 12623 | -5/Factory | Identified exit to Upper Caves 12783 | -5/Factory | Discovered new exit (range 4) 12783 | -5/Factory | Identified exit to Factory 12795 | -5/Factory | Loaded intel: 8 recycling unit locations 12805 | -5/Factory | Learned location of Protoforge (-2) 12843 | -5/Factory | Build established: Scout 12949 | -5/Factory | Entered Upper Caves 12971 | -5/Upper Caves | Found Alien Artifact 12974 | -5/Upper Caves | Found DCF Scrap (14 items) 13017 | -5/Upper Caves | Encountered a Warlord checkpoint 13038 | -5/Upper Caves | Discovered new exit (range 8) 13062 | -5/Upper Caves | Identified exit to Upper Caves 13066 | -5/Upper Caves | Entered another Upper Caves area 13077 | -5/Upper Caves | Discovered exit to Factory (range 11) 13098 | -5/Upper Caves | A Commander dispatched an escort 13099 | -5/Upper Caves | Learned Extension garrison access intel 13199 | -5/Upper Caves | Discovered new exit (range 6) 13200 | -5/Upper Caves | Identified exit to Zhirov 13207 | -5/Upper Caves | Entered Zhirov 13207 | -5/Zhirov | Discovered new exit (range 3) 13212 | -5/Zhirov | Met Zhirov 13216 | -5/Zhirov | Learned location of Quarantine (-2) 13216 | -5/Zhirov | Learned location of Command (-1) 13220 | -5/Zhirov | Zhirov requested help retrieving the SGEMP Prototype 13225 | -5/Zhirov | Found Alien Artifact 13225 | -5/Zhirov | Identified Integrated Dissipator 13225 | -5/Zhirov | Installed Integrated Dissipator, increased core heat dissipation (+20) 13252 | -5/Zhirov | Found Alien Artifact 13293 | -5/Zhirov | Identified exit to Proximity Caves 13294 | -5/Zhirov | Entered Proximity Caves 13365 | -4/Proximity Caves | Spotted B-86 Titan 13420 | -4/Proximity Caves | Learned Research terminal intel 13428 | -4/Proximity Caves | Discovered exit to Factory (range 13) 13440 | -4/Proximity Caves | Entered Factory 13440 | -4/Factory | Evolved 2 slots: Propulsion x1, Utility x1 13441 | -4/Factory | Identified exit to Extension 13537 | -4/Factory | Discovered new exit (range 16) 13589 | -4/Factory | Loaded intel: 8 recycling unit locations 13609 | -4/Factory | Discovered new exit (range 9) 13611 | -4/Factory | Identified exit to Upper Caves 13758 | -4/Factory | Build established: Hacker-Scout 13808 | -4/Factory | Entered Upper Caves 13820 | -4/Upper Caves | Learned location of 1 exit from Research 13822 | -4/Upper Caves | Encountered a Warlord checkpoint 13972 | -4/Upper Caves | Found Alien Artifact 13972 | -4/Upper Caves | Identified Core Expander 13972 | -4/Upper Caves | Installed Core Expander, added new Propulsion slot 13997 | -4/Upper Caves | Discovered new exit (range 7) 14002 | -4/Upper Caves | Identified exit to Upper Caves 14003 | -4/Upper Caves | Entered another Upper Caves area 14155 | -4/Upper Caves | Encountered a Warlord checkpoint 14187 | -4/Upper Caves | Discovered new exit (range 11) 14196 | -4/Upper Caves | Identified exit to Warlord 14197 | -4/Upper Caves | Entered Warlord 14342 | -4/Warlord | Found Ghost Barrier 14363 | -4/Warlord | Warlord's base attacked by MAIN.C 14370 | -4/Warlord | Rebuked by Warlord 14395 | -4/Warlord | Found Vortex Lance 14695 | -4/Warlord | Found Vortex Rail 14713 | -4/Warlord | Warlord forces counterattacked 14720 | -4/Warlord | Build established: Hacker-Sprinter 14740 | -4/Warlord | Spotted Striker 14788 | -4/Warlord | Spotted Executioner 14803 | -4/Warlord | Spotted Striker 14805 | -4/Warlord | Attached CPS modules to Striker. 14930 | -4/Warlord | Lost 35 allies 15038 | -4/Warlord | Warlord base infiltrated, sounded retreat 15039 | -4/Warlord | Enhanced Grunt warped into view 15039 | -4/Warlord | Enhanced Grunt warped into view 15039 | -4/Warlord | Enhanced Grunt warped into view 15039 | -4/Warlord | Enhanced Demolisher warped into view 15039 | -4/Warlord | Enhanced Demolisher warped into view 15039 | -4/Warlord | Enhanced Demolisher warped into view 15102 | -4/Warlord | Spotted Striker 15103 | -4/Warlord | Spotted Executioner 15103 | -4/Warlord | Spotted Striker 15131 | -4/Warlord | Discovered new exit (range 10) 15131 | -4/Warlord | Identified exit to Proximity Caves 15131 | -4/Warlord | Entered Proximity Caves 15296 | -3/Proximity Caves | Discovered new exit (range 11) 15331 | -3/Proximity Caves | Identified exit to Research 15331 | -3/Proximity Caves | Entered Research 15331 | -3/Research | Evolved 2 slots: Power x1, Utility x1 15332 | -3/Research | Identified exit to Testing 15333 | -3/Research | Loaded intel: 23 terminal locations 15353 | -3/Research | Identified exit to Armory 15391 | -3/Research | Discovered new exit (range 17) 15409 | -3/Research | Build established: Hacker-Scout 15418 | -3/Research | Loaded intel: 5 recycling unit locations 15485 | -3/Research | Entered Testing 15491 | -3/Testing | Found Hyp. Multirail 15532 | -3/Testing | Spotted Striker 15532 | -3/Testing | Spotted Striker 15668 | -3/Testing | Found Exp. Sensor Array 15685 | -3/Testing | Discovered new exit (range 3) 15694 | -3/Testing | Fabricated Imp. Q-thruster? 15700 | -3/Testing | Identified exit to Research 15700 | -3/Testing | Entered Research 15700 | -2/Research | Evolved 2 slots: Utility x2 15742 | -2/Research | Discovered new exit (range 9) 15743 | -2/Research | Identified exit to Access 15747 | -2/Research | Loaded intel: 5 recycling unit locations 15774 | -2/Research | Local machine network offline 15825 | -2/Research | Spotted B-90 Cyclops 15894 | -2/Research | Discovered new exit (range 5) 15898 | -2/Research | Identified exit to Quarantine 15899 | -2/Research | Entered Quarantine 15903 | -2/Quarantine | Found Alien Artifact 15989 | -2/Quarantine | Cryocooling Duct disabled 16004 | -2/Quarantine | Ambient heat levels rising (+20) 16004 | -2/Quarantine | Non-combat units ordered to evacuate 16021 | -2/Quarantine | Found Alien Slashing Weapon 16021 | -2/Quarantine | Identified Sigix Broadsword 16027 | -2/Quarantine | Discovered exit to Access (range 5) 16059 | -2/Quarantine | Spotted Fortress 16072 | -2/Quarantine | Discovered new exit (range 6) 16072 | -2/Quarantine | Discovered new exit (range 6) 16073 | -2/Quarantine | Identified exit to Protoforge 16076 | -2/Quarantine | Entered Protoforge 16088 | -2/Protoforge | Spotted Hotshot 16094 | -2/Protoforge | Spotted Hotshot 16094 | -2/Protoforge | Spotted B-90 Cyclops 16097 | -2/Protoforge | Spotted Hotshot 16104 | -2/Protoforge | Superfortress began startup sequence 16152 | -2/Protoforge | Spotted V381-t 16184 | -2/Protoforge | Spotted EXE-6 16184 | -2/Protoforge | Spotted EXE-6 16186 | -2/Protoforge | Spotted Decapitator 16186 | -2/Protoforge | Spotted Decapitator 16193 | -2/Protoforge | UFD initiated attack on Protoforge (Readiness: High) 16193 | -2/Protoforge | Loaded intel: 3 recycling unit locations 16229 | -2/Protoforge | Optimus greeted in Protoforge 16234 | -2/Protoforge | Found Prototype Ballistic Gun 16235 | -2/Protoforge | Found Prototype Ballistic Gun 16236 | -2/Protoforge | Found Exp. Core Analyzer 16239 | -2/Protoforge | Found Prototype Processor 16239 | -2/Protoforge | Identified Exp. Armor Integrity Analyzer 16250 | -2/Protoforge | Identified Transdimensional Reconstructor 16250 | -2/Protoforge | Identified Cep. XC Strikerail (x2) 16250 | -2/Protoforge | Forge Plexus network access discovered 16271 | -2/Protoforge | Lost 3 allies 16317 | -2/Protoforge | Found Prototype Protection 16317 | -2/Protoforge | Identified Med. Regenerative Plating 16319 | -2/Protoforge | Found Prototype Device 16319 | -2/Protoforge | Identified Exp. Shield Generator 16344 | -2/Protoforge | Found Cep. XC Strikerail 16345 | -2/Protoforge | Found Cep. XC Strikerail 16347 | -2/Protoforge | Spotted AP7-3 16347 | -2/Protoforge | Spotted AP7-3 16387 | -2/Protoforge | Found Exp. Targeting Computer 16415 | -2/Protoforge | Lost 7 allies 16451 | -2/Protoforge | Spotted Striker 16453 | -2/Protoforge | Spotted Executioner 16456 | -2/Protoforge | Local machine network offline 16490 | -2/Protoforge | UFD reported confirmed Drillbomb installation 16501 | -2/Protoforge | Spotted Executioner 16505 | -2/Protoforge | Destroyed 7 combat bots 16530 | -2/Protoforge | Spotted Striker 16538 | -2/Protoforge | UFD reported confirmed Drillbomb installation 16558 | -2/Protoforge | Spotted Striker 16567 | -2/Protoforge | Spotted Striker 16604 | -2/Protoforge | Build established: Scavenger-Sprinter 16607 | -2/Protoforge | Lost 4 allies 16625 | -2/Protoforge | UFD reported confirmed Drillbomb installation 16785 | -2/Protoforge | Spotted Immortal 16785 | -2/Protoforge | Spotted Immortal 16798 | -2/Protoforge | Destroyed 13 combat bots 16846 | -2/Protoforge | Destroyed Immortal 16856 | -2/Protoforge | Destroyed Immortal 16864 | -2/Protoforge | Found Exp. Melee Analysis Suite 16874 | -2/Protoforge | Found Exp. Jetlance 16880 | -2/Protoforge | Spotted Decapitator 16880 | -2/Protoforge | Spotted Decapitator 16880 | -2/Protoforge | Spotted Decapitator 16902 | -2/Protoforge | Found Prototype Device 16903 | -2/Protoforge | Identified Exp. Cloaking Device 16906 | -2/Protoforge | Found Cep. Antimissile System 16909 | -2/Protoforge | Found Exp. System Purifier 16935 | -2/Protoforge | Found Faulty Cep. Countertargeting System 16936 | -2/Protoforge | Found Faulty Cep. Countertargeting System 16937 | -2/Protoforge | Found Faulty Cep. Recoil Nullifier 16946 | -2/Protoforge | Found Cep. Recoil Nullifier 16947 | -2/Protoforge | Found Faulty Cep. Networked Targeting System 16948 | -2/Protoforge | Found Faulty Cep. Recoil Nullifier 16955 | -2/Protoforge | Found Cep. Hypertargeting System 16956 | -2/Protoforge | Found Faulty Cep. Hypertargeting System 16958 | -2/Protoforge | Found Faulty Cep. Hypertargeting System 16964 | -2/Protoforge | Found Cep. Countertargeting System 16965 | -2/Protoforge | Found Faulty Cep. Recoil Nullifier 17043 | -2/Protoforge | Destroyed Decapitator 17056 | -2/Protoforge | Destroyed Decapitator 17066 | -2/Protoforge | UFD reported confirmed Drillbomb installation 17155 | -2/Protoforge | Spotted Decapitator 17155 | -2/Protoforge | Spotted Decapitator 17155 | -2/Protoforge | Spotted Decapitator 17206 | -2/Protoforge | Found Cep. Weapon Articulator 17446 | -2/Protoforge | Found Cep. Disintegration Ray 17455 | -2/Protoforge | UFD reported confirmed Drillbomb installation 17554 | -2/Protoforge | Spotted AP7-3 17557 | -2/Protoforge | Spotted AP7-3 17564 | -2/Protoforge | Destroyed AP7-3 17614 | -2/Protoforge | Destroyed AP7-3 17958 | -2/Protoforge | Found Faulty Cep. Dimensional Manipulator 17959 | -2/Protoforge | Found Cep. Cloak Mesh 17960 | -2/Protoforge | Found Faulty Cep. Cloak Mesh 17961 | -2/Protoforge | Found Cep. Dimensional Manipulator 17988 | -2/Protoforge | UFD reported confirmed Drillbomb installation 18083 | -2/Protoforge | Found Crosscalibrator 18362 | -2/Protoforge | Destroyed Decapitator 18364 | -2/Protoforge | Destroyed Decapitator 18372 | -2/Protoforge | Destroyed Decapitator 18547 | -2/Protoforge | Found Cep. Fieldthrust Drive 18549 | -2/Protoforge | Found Faulty Cep. Fieldthrust Drive 18567 | -2/Protoforge | Spotted V201-m 18567 | -2/Protoforge | Spotted V037-s 18573 | -2/Protoforge | Found Cep. Antigrav Storage Unit 18615 | -2/Protoforge | Found Cep. Plasma Driver 18619 | -2/Protoforge | Found Faulty Cep. Plasma Driver 18624 | -2/Protoforge | Found Cep. Disintegration Ray 18628 | -2/Protoforge | Found Exp. Jetlance 18631 | -2/Protoforge | Found Faulty Cep. Deflector Sword 18634 | -2/Protoforge | Found Faulty Cep. Deflector Sword 18638 | -2/Protoforge | Found Exp. Jetlance 18663 | -2/Protoforge | Additional patrols dispatched to research labs 18825 | -2/Protoforge | Spotted Decapitator 18825 | -2/Protoforge | Spotted Decapitator 18825 | -2/Protoforge | Spotted V006-d 18825 | -2/Protoforge | Spotted Decapitator 18830 | -2/Protoforge | Found Cep. Zero-point Core 18832 | -2/Protoforge | Found Cep. Zero-point Core 18835 | -2/Protoforge | Found Cep. Zero-point Core 18842 | -2/Protoforge | Found Faulty Cep. Zero-point Core 18908 | -2/Protoforge | Found Cep. Combat Aerolev Unit 18910 | -2/Protoforge | Found Cep. Combat Aerolev Unit 18911 | -2/Protoforge | Found Prototype Processor 18912 | -2/Protoforge | Identified Exp. Target Analyzer 19159 | -2/Protoforge | Found Faulty Cep. Core Analysis Suite 19160 | -2/Protoforge | Found Faulty Cep. Core Analysis Suite 19233 | -2/Protoforge | Spotted Immortal 19233 | -2/Protoforge | Spotted Immortal 19257 | -2/Protoforge | Found Cep. Matter Streamer 19258 | -2/Protoforge | Found Cep. NT7 Matterbank 19259 | -2/Protoforge | Found Cep. Chromion Battery 19265 | -2/Protoforge | Found Cep. Chromion Battery 19290 | -2/Protoforge | Spotted V013-d 19294 | -2/Protoforge | Found Cep. Tiamat Rocket Array 19295 | -2/Protoforge | Found Faulty Cep. Tiamat Rocket Array 19618 | -2/Protoforge | Build established: Scavenger-Gladiator 20121 | -2/Protoforge | Found Cep. Phase Shift Module 20123 | -2/Protoforge | Found Faulty Cep. Phase Shift Module 20124 | -2/Protoforge | Found Cep. Energy Mantle 20126 | -2/Protoforge | Found Faulty Cep. Beam Splitter 20129 | -2/Protoforge | Found Corrupted Cep. Beam Splitter 20134 | -2/Protoforge | Found Faulty Cep. Energy Mantle 20262 | -2/Protoforge | Found Faulty Cep. Projectile Intercept Suite 20263 | -2/Protoforge | Found Faulty Cep. Projectile Intercept Suite 20309 | -2/Protoforge | UFD reported confirmed Drillbomb installation 20421 | -2/Protoforge | Found Faulty Femtoactuators 20423 | -2/Protoforge | Found Femtoactuators 20524 | -2/Protoforge | Spotted Executioner 20559 | -2/Protoforge | Spotted Executioner 20669 | -2/Protoforge | Spotted Striker 20670 | -2/Protoforge | Spotted Hotshot 20670 | -2/Protoforge | Spotted Hotshot 20671 | -2/Protoforge | Found UFD Drillbomb 20693 | -2/Protoforge | Installed UFD Drillbomb at designated target 20693 | -2/Protoforge | UFD reported confirmed Drillbomb installation 20726 | -2/Protoforge | Destroyed Hotshot 20736 | -2/Protoforge | Destroyed Hotshot 20747 | -2/Protoforge | Spotted Striker 20759 | -2/Protoforge | Spotted Executioner 20764 | -2/Protoforge | Spotted Executioner 20873 | -2/Protoforge | Spotted Executioner 20894 | -2/Protoforge | Spotted Striker 20897 | -2/Protoforge | Destroyed Executioner 20905 | -2/Protoforge | Spotted Executioner 20905 | -2/Protoforge | Spotted Striker 20962 | -2/Protoforge | Destroyed 13 combat bots 21075 | -2/Protoforge | Destroyed 9 combat bots 21124 | -2/Protoforge | Spotted Striker 21127 | -2/Protoforge | Spotted Executioner 21157 | -2/Protoforge | Spotted Striker 21162 | -2/Protoforge | Spotted Striker 21162 | -2/Protoforge | Spotted Executioner 21175 | -2/Protoforge | Discovered exit to Access (range 19) 21175 | -2/Protoforge | Spotted Executioner 21175 | -2/Protoforge | Spotted Executioner 21178 | -2/Protoforge | Destroyed 10 combat bots 21179 | -2/Protoforge | Destroyed Executioner 21182 | -2/Protoforge | Destroyed Executioner 21192 | -2/Protoforge | Destroyed Executioner 21213 | -2/Protoforge | Destroyed 15 combat bots 21219 | -2/Protoforge | Destroyed Striker 21250 | -2/Protoforge | Spotted Striker 21251 | -2/Protoforge | Spotted Striker 21280 | -2/Protoforge | Spotted Striker 21284 | -2/Protoforge | Spotted Striker 21320 | -2/Protoforge | Destroyed 8 combat bots 21388 | -2/Protoforge | Spotted Executioner 21389 | -2/Protoforge | Spotted Executioner 21391 | -2/Protoforge | Spotted Executioner 21391 | -2/Protoforge | Spotted Executioner 21391 | -2/Protoforge | Destroyed Executioner 21395 | -2/Protoforge | Destroyed Executioner 21398 | -2/Protoforge | Destroyed Executioner 21430 | -2/Protoforge | Lost 3 allies 21435 | -2/Protoforge | UFD reported confirmed Drillbomb installation 21437 | -2/Protoforge | Destroyed 15 combat bots 21443 | -2/Protoforge | Spotted Executioner 21443 | -2/Protoforge | Spotted Executioner 21443 | -2/Protoforge | Spotted Executioner 21443 | -2/Protoforge | Spotted Striker 21463 | -2/Protoforge | Destroyed Executioner 21463 | -2/Protoforge | Destroyed Striker 21469 | -2/Protoforge | Destroyed Executioner 21471 | -2/Protoforge | Spotted Striker 21473 | -2/Protoforge | Spotted Striker 21481 | -2/Protoforge | Destroyed Striker 21494 | -2/Protoforge | Lost 5 allies 21508 | -2/Protoforge | Destroyed 16 combat bots 21543 | -2/Protoforge | Spotted Executioner 21543 | -2/Protoforge | Spotted Executioner 21543 | -2/Protoforge | Spotted Striker 21543 | -2/Protoforge | Spotted Striker 21544 | -2/Protoforge | Destroyed Executioner 21547 | -2/Protoforge | Destroyed Executioner 21568 | -2/Protoforge | Destroyed 11 combat bots 21575 | -2/Protoforge | Lost 3 allies 21633 | -2/Protoforge | Found Cep. Combat Aerolev Unit 21656 | -2/Protoforge | Spotted V441-t 21657 | -2/Protoforge | Found Cep. Gyrokinetic System 21658 | -2/Protoforge | Found Cep. Gyrokinetic System 21716 | -2/Protoforge | Found Faulty Cep. Miniperforator 21787 | -2/Protoforge | Identified Subatomic Replicator 21787 | -2/Protoforge | Used Subatomic Replicator to replicate Faulty Cep. Miniperforator 21993 | -2/Protoforge | Found Cep. Weapon Articulator 21996 | -2/Protoforge | Found Cep. Weapon Articulator 22077 | -2/Protoforge | Build established: Sprinter 22082 | -2/Protoforge | Found Cep. Antimissile System 22088 | -2/Protoforge | Spotted Executioner 22172 | -2/Protoforge | Spotted Striker 22187 | -2/Protoforge | Spotted Striker 22205 | -2/Protoforge | Spotted Striker 22216 | -2/Protoforge | Spotted Executioner 22218 | -2/Protoforge | Destroyed Executioner 22223 | -2/Protoforge | Spotted Striker 22284 | -2/Protoforge | Spotted Executioner 22287 | -2/Protoforge | Spotted Striker 22295 | -2/Protoforge | Destroyed Executioner 22301 | -2/Protoforge | Destroyed Striker 22322 | -2/Protoforge | Destroyed 13 combat bots 22325 | -2/Protoforge | Lost 6 allies 22343 | -2/Protoforge | Spotted Striker 22343 | -2/Protoforge | Spotted Striker 22343 | -2/Protoforge | Spotted Striker 22352 | -2/Protoforge | Destroyed Striker 22355 | -2/Protoforge | Spotted Striker 22357 | -2/Protoforge | Destroyed Striker 22388 | -2/Protoforge | Spotted Executioner 22389 | -2/Protoforge | Spotted Executioner 22423 | -2/Protoforge | Destroyed 9 combat bots 22432 | -2/Protoforge | Lost 4 allies 22447 | -2/Protoforge | Spotted Executioner 22449 | -2/Protoforge | Spotted Executioner 22452 | -2/Protoforge | Spotted Executioner 22453 | -2/Protoforge | Spotted Executioner 22453 | -2/Protoforge | Destroyed Executioner 22455 | -2/Protoforge | Destroyed Executioner 22478 | -2/Protoforge | Spotted Striker 22480 | -2/Protoforge | Spotted Striker 22497 | -2/Protoforge | Destroyed Striker 22497 | -2/Protoforge | Destroyed Striker 22527 | -2/Protoforge | Lost 6 allies 22533 | -2/Protoforge | Destroyed Executioner 22537 | -2/Protoforge | Destroyed Executioner 22543 | -2/Protoforge | Spotted Executioner 22558 | -2/Protoforge | Destroyed 14 combat bots 22560 | -2/Protoforge | Spotted Striker 22560 | -2/Protoforge | Destroyed Striker 22565 | -2/Protoforge | Spotted Striker 22566 | -2/Protoforge | Destroyed Striker 22584 | -2/Protoforge | Spotted Executioner 22585 | -2/Protoforge | Destroyed Executioner 22592 | -2/Protoforge | Spotted Executioner 22594 | -2/Protoforge | Spotted Striker 22596 | -2/Protoforge | Destroyed Striker 22617 | -2/Protoforge | Destroyed 8 combat bots 22781 | -2/Protoforge | Spotted Executioner 22782 | -2/Protoforge | Spotted Executioner 22783 | -2/Protoforge | Spotted Executioner 22785 | -2/Protoforge | Spotted Executioner 22796 | -2/Protoforge | Spotted Executioner 22797 | -2/Protoforge | Destroyed Executioner 22800 | -2/Protoforge | Spotted Executioner 22803 | -2/Protoforge | Destroyed Executioner 22807 | -2/Protoforge | Destroyed Executioner 22811 | -2/Protoforge | Destroyed Executioner 22823 | -2/Protoforge | Destroyed Executioner 22840 | -2/Protoforge | Lost 7 allies 22844 | -2/Protoforge | Destroyed 19 combat bots 22849 | -2/Protoforge | Spotted Executioner 22850 | -2/Protoforge | Spotted Striker 22851 | -2/Protoforge | Destroyed Executioner 22855 | -2/Protoforge | Destroyed Striker 22864 | -2/Protoforge | Spotted Executioner 22864 | -2/Protoforge | Spotted Executioner 22875 | -2/Protoforge | Spotted Executioner 22875 | -2/Protoforge | Spotted Executioner 22913 | -2/Protoforge | Destroyed 10 combat bots 22922 | -2/Protoforge | Lost 13 allies 22956 | -2/Protoforge | Destroyed Executioner 22958 | -2/Protoforge | Spotted Striker 22959 | -2/Protoforge | Spotted Striker 22960 | -2/Protoforge | Destroyed Striker 22962 | -2/Protoforge | Destroyed Striker 22983 | -2/Protoforge | Destroyed Executioner 23028 | -2/Protoforge | Destroyed 8 combat bots 23043 | -2/Protoforge | Spotted Striker 23043 | -2/Protoforge | Spotted Striker 23043 | -2/Protoforge | Spotted Executioner 23043 | -2/Protoforge | Spotted Executioner 23043 | -2/Protoforge | Destroyed Executioner 23047 | -2/Protoforge | Destroyed Executioner 23047 | -2/Protoforge | Destroyed Striker 23047 | -2/Protoforge | Destroyed Striker 23068 | -2/Protoforge | Destroyed 9 combat bots 23068 | -2/Protoforge | Spotted Executioner 23068 | -2/Protoforge | Spotted Executioner 23113 | -2/Protoforge | Lost 7 allies 23143 | -2/Protoforge | Spotted Striker 23143 | -2/Protoforge | Spotted Executioner 23143 | -2/Protoforge | Spotted Striker 23143 | -2/Protoforge | Spotted Striker 23146 | -2/Protoforge | Destroyed Striker 23146 | -2/Protoforge | Destroyed Executioner 23146 | -2/Protoforge | Destroyed Striker 23150 | -2/Protoforge | Destroyed Striker 23168 | -2/Protoforge | Spotted Executioner 23168 | -2/Protoforge | Spotted Striker 23173 | -2/Protoforge | Destroyed Executioner 23180 | -2/Protoforge | Destroyed Striker 23201 | -2/Protoforge | Destroyed 19 combat bots 23204 | -2/Protoforge | Lost 4 allies 23243 | -2/Protoforge | Spotted Executioner 23243 | -2/Protoforge | Spotted Striker 23243 | -2/Protoforge | Spotted Striker 23243 | -2/Protoforge | Spotted Striker 23246 | -2/Protoforge | Destroyed Executioner 23246 | -2/Protoforge | Destroyed Striker 23246 | -2/Protoforge | Destroyed Striker 23251 | -2/Protoforge | Destroyed Striker 23269 | -2/Protoforge | Spotted Executioner 23269 | -2/Protoforge | Spotted Executioner 23269 | -2/Protoforge | Destroyed Executioner 23277 | -2/Protoforge | Destroyed Executioner 23303 | -2/Protoforge | Lost 4 allies 23309 | -2/Protoforge | Destroyed 17 combat bots 23343 | -2/Protoforge | Spotted Executioner 23343 | -2/Protoforge | Spotted Striker 23343 | -2/Protoforge | Spotted Executioner 23343 | -2/Protoforge | Spotted Executioner 23343 | -2/Protoforge | Destroyed Executioner 23358 | -2/Protoforge | Destroyed Executioner 23358 | -2/Protoforge | Destroyed Striker 23369 | -2/Protoforge | Spotted Executioner 23369 | -2/Protoforge | Spotted Executioner 23370 | -2/Protoforge | Destroyed Executioner 23394 | -2/Protoforge | Destroyed 14 combat bots 23404 | -2/Protoforge | Lost 4 allies 23443 | -2/Protoforge | Spotted Executioner 23443 | -2/Protoforge | Spotted Striker 23443 | -2/Protoforge | Spotted Executioner 23443 | -2/Protoforge | Spotted Executioner 23443 | -2/Protoforge | P-80 Master assimilated allied Lugger 071 23443 | -2/Protoforge | Destroyed Executioner 23446 | -2/Protoforge | Destroyed Executioner 23446 | -2/Protoforge | Destroyed Executioner 23454 | -2/Protoforge | Destroyed Striker 23468 | -2/Protoforge | Spotted Executioner 23468 | -2/Protoforge | Spotted Striker 23475 | -2/Protoforge | Destroyed 13 combat bots 23477 | -2/Protoforge | Lost 7 allies 23500 | -2/Protoforge | Destroyed Executioner 23523 | -2/Protoforge | Lost 3 allies 23543 | -2/Protoforge | Spotted Striker 23544 | -2/Protoforge | Spotted Striker 23544 | -2/Protoforge | Spotted Striker 23549 | -2/Protoforge | Destroyed Striker 23549 | -2/Protoforge | Destroyed Striker 23568 | -2/Protoforge | Spotted Striker 23568 | -2/Protoforge | Spotted Executioner 23568 | -2/Protoforge | Destroyed Executioner 23574 | -2/Protoforge | Destroyed Striker 23601 | -2/Protoforge | Destroyed 11 combat bots 23641 | -2/Protoforge | UFD reported confirmed Drillbomb installation 23642 | -2/Protoforge | UFD began Drillbomb countdown 23647 | -2/Protoforge | Entered Access 23647 | -1/Access | Evolved 2 slots: Power x1, Utility x1 23690 | -1/Access | High security lockdown imminent 23708 | -1/Access | Spotted Striker 23711 | -1/Access | Spotted Striker 23718 | -1/Access | Destroyed Striker 23726 | -1/Access | Destroyed Striker 23757 | -1/Access | Destroyed 9 combat bots 23770 | -1/Access | High security lockdown engaged 23829 | -1/Access | Build established: Scavenger-Sprinter 23996 | -1/Access | Spotted Striker 23996 | -1/Access | Spotted Striker 24001 | -1/Access | Destroyed Striker 24003 | -1/Access | Destroyed Striker 24013 | -1/Access | Spotted Striker 24013 | -1/Access | Spotted Striker 24019 | -1/Access | Destroyed Striker 24021 | -1/Access | Destroyed Striker 24160 | -1/Access | Spotted Striker 24169 | -1/Access | Destroyed Striker 24178 | -1/Access | Spotted Striker 24196 | -1/Access | Destroyed Striker 24277 | -1/Access | Destroyed 25 combat bots 24372 | -1/Access | Spotted Executioner 24372 | -1/Access | Destroyed Executioner 24379 | -1/Access | Spotted Striker 24382 | -1/Access | Destroyed Striker 24425 | -1/Access | Spotted Striker 24425 | -1/Access | Spotted Executioner 24428 | -1/Access | Destroyed Striker 24430 | -1/Access | Destroyed Executioner 24434 | -1/Access | Destroyed Executioner 24438 | -1/Access | Spotted Executioner 24457 | -1/Access | Destroyed Executioner 24480 | -1/Access | Destroyed 26 combat bots 24544 | -1/Access | Spotted Executioner 24548 | -1/Access | Destroyed Executioner 24590 | -1/Access | Destroyed 7 combat bots 24630 | -1/Access | Spotted Striker 24630 | -1/Access | Spotted Striker 24634 | -1/Access | Destroyed Striker 24643 | -1/Access | Spotted Executioner 24644 | -1/Access | Spotted Executioner 24646 | -1/Access | Destroyed Striker 24646 | -1/Access | Destroyed Executioner 24647 | -1/Access | Spotted Striker 24649 | -1/Access | Spotted Striker 24652 | -1/Access | Destroyed Striker 24656 | -1/Access | Spotted Striker 24656 | -1/Access | Destroyed Striker 24660 | -1/Access | Destroyed Striker 24662 | -1/Access | Destroyed Executioner 24753 | -1/Access | Destroyed 33 combat bots 24813 | -1/Access | Spotted Striker 24814 | -1/Access | Destroyed Striker 24843 | -1/Access | Destroyed 8 combat bots 24908 | -1/Access | Spotted Striker 24908 | -1/Access | Spotted Striker 24914 | -1/Access | Destroyed Striker 24917 | -1/Access | Destroyed Striker 24928 | -1/Access | Destroyed Executioner 24930 | -1/Access | Spotted Executioner 24930 | -1/Access | Destroyed Executioner 24931 | -1/Access | Spotted Executioner 24932 | -1/Access | Destroyed Executioner 24953 | -1/Access | Destroyed 7 combat bots 24963 | -1/Access | Spotted Executioner 24963 | -1/Access | Spotted Striker 24976 | -1/Access | Destroyed Executioner 24978 | -1/Access | Destroyed Striker 24988 | -1/Access | Spotted Striker 24989 | -1/Access | Spotted Executioner 24991 | -1/Access | Destroyed Striker 25000 | -1/Access | Destroyed Executioner 25009 | -1/Access | Destroyed Executioner 25038 | -1/Access | Destroyed 13 combat bots 25144 | -1/Access | Spotted Striker 25152 | -1/Access | Destroyed Striker 25194 | -1/Access | Destroyed 9 combat bots 25267 | -1/Access | Spotted Striker 25269 | -1/Access | Destroyed Striker 25306 | -1/Access | Spotted Executioner 25306 | -1/Access | Spotted Striker 25306 | -1/Access | Spotted Striker 25306 | -1/Access | Spotted Executioner 25307 | -1/Access | Destroyed Striker 25309 | -1/Access | Destroyed Striker 25309 | -1/Access | Destroyed Executioner 25317 | -1/Access | Destroyed Executioner 25338 | -1/Access | Destroyed 11 combat bots 25451 | -1/Access | Spotted Executioner 25473 | -1/Access | Destroyed Executioner 25490 | -1/Access | Spotted Executioner 25498 | -1/Access | Destroyed Executioner 25501 | -1/Access | Garrison activated, responded to threat 25514 | -1/Access | Spotted B-99 Colossus 25530 | -1/Access | Destroyed 20 combat bots 25535 | -1/Access | Spotted B-99 Colossus 25620 | -1/Access | Spotted Striker 25620 | -1/Access | Spotted Executioner 25620 | -1/Access | Spotted Striker 25631 | -1/Access | Destroyed Striker 25634 | -1/Access | Spotted Striker 25635 | -1/Access | Destroyed Striker 25658 | -1/Access | Destroyed Striker 25666 | -1/Access | Destroyed Striker 25671 | -1/Access | Spotted Executioner 25671 | -1/Access | Spotted Striker 25671 | -1/Access | Spotted Executioner 25674 | -1/Access | Destroyed Executioner 25678 | -1/Access | Destroyed Striker 25694 | -1/Access | Spotted Striker 25703 | -1/Access | Spotted Striker 25705 | -1/Access | Spotted Striker 25705 | -1/Access | Spotted Striker 25707 | -1/Access | Spotted Executioner 25714 | -1/Access | Destroyed Striker 25718 | -1/Access | Spotted Striker 25718 | -1/Access | Spotted Executioner 25718 | -1/Access | Destroyed Executioner 25718 | -1/Access | Destroyed Executioner 25725 | -1/Access | Destroyed Executioner 25731 | -1/Access | Destroyed Striker 25734 | -1/Access | Destroyed Striker 25751 | -1/Access | Destroyed Striker 25752 | -1/Access | Spotted Executioner 25753 | -1/Access | Destroyed Executioner 25760 | -1/Access | Lost 3 parts (2u1w) 25774 | -1/Access | Spotted Executioner 25774 | -1/Access | Spotted Striker 25785 | -1/Access | Destroyed Striker 25787 | -1/Access | Destroyed Striker 25790 | -1/Access | Sterilization system engaged 25803 | -1/Access | Spotted Executioner 25816 | -1/Access | Destroyed 63 combat bots 25872 | -1/Access | Destroyed Executioner 26005 | -1/Access | Destroyed Executioner 26043 | -1/Access | Discovered new exit (range 7) 26048 | -1/Access | Entered Command 26171 | -1/Command | Destroyed 8 combat bots 26185 | -1/Command | Spotted B-99 Colossus 26298 | -1/Command | First assault squad dispatched 26719 | -1/Command | High security lockdown imminent 26777 | -1/Command | Destroyed 20 combat bots 26799 | -1/Command | High security lockdown engaged 26842 | -1/Command | Destroyed 8 combat bots 27032 | -1/Command | Destroyed 16 combat bots 27093 | -1/Command | Spotted Investigator 27093 | -1/Command | Scanned by Researcher 27094 | -1/Command | Destroyed Investigator 27160 | -1/Command | Destroyed 20 combat bots 27224 | -1/Command | Spotted Investigator 27229 | -1/Command | Destroyed Investigator 27286 | -1/Command | Spotted Executioner 27287 | -1/Command | Destroyed Executioner 27308 | -1/Command | Destroyed 16 combat bots 27425 | -1/Command | Spotted Striker 27427 | -1/Command | Destroyed Striker 27450 | -1/Command | Spotted Striker 27453 | -1/Command | Destroyed Striker 27455 | -1/Command | Spotted Executioner 27455 | -1/Command | Spotted Striker 27456 | -1/Command | Spotted Striker 27459 | -1/Command | Destroyed Executioner 27459 | -1/Command | Destroyed Striker 27461 | -1/Command | Destroyed Striker 27482 | -1/Command | Destroyed 14 combat bots 27491 | -1/Command | Spotted Striker 27498 | -1/Command | Destroyed Striker 27508 | -1/Command | Spotted Striker 27512 | -1/Command | Destroyed Striker 27515 | -1/Command | System corruption reached 10% 27564 | -1/Command | Destroyed 13 combat bots 27655 | -1/Command | Spotted Executioner 27659 | -1/Command | Destroyed Executioner 27663 | -1/Command | Spotted Striker 27670 | -1/Command | Spotted Striker 27676 | -1/Command | Destroyed Striker 27685 | -1/Command | Destroyed Striker 27690 | -1/Command | Spotted Striker 27701 | -1/Command | Destroyed Striker 27744 | -1/Command | Destroyed 21 combat bots 27810 | -1/Command | Destroyed Executioner 27810 | -1/Command | Destroyed Executioner 28219 | -1/Command | Found Quantum Capacitor 28351 | -1/Command | Spotted M Guard 28351 | -1/Command | Spotted M Guard 28351 | -1/Command | Spotted Combat Programmer 28351 | -1/Command | Spotted Combat Programmer 28357 | -1/Command | Destroyed M Guard 28384 | -1/Command | Destroyed Combat Programmer 28389 | -1/Command | Destroyed Combat Programmer 28412 | -1/Command | Destroyed M Guard 28412 | -1/Command | All MAIN.C guards destroyed 28421 | -1/Command | Found Corrupted Prototype Device 28423 | -1/Command | Found Corrupted Prototype Reactor 28510 | -1/Command | Met MAIN.C 28513 | -1/Command | 0b10 Conduit disabled 28534 | -1/Command | Destroyed MAIN.C Shell 28536 | -1/Command | MAIN.C activated Command garrisons 28549 | -1/Command | Destroyed MAIN.C 28550 | -1/Command | Identified Zero-point Reactor 28550 | -1/Command | Identified AEGIS Remote Shield 28550 | -1/Command | Discovered new exit (range 39) 28550 | -1/Command | Discovered new exit (range 108) 28550 | -1/Command | Extracted map data and part IDs from MAIN.C's data core 28554 | -1/Command | Found Centrium Heavy Armor Plating 29240 | -1/Command | Found Exp. System Purifier 29298 | -1/Command | Found Centrium Heavy Armor Plating 29304 | -1/Command | Found Zero-point Reactor 29308 | -1/Command | Found Omega Cannon 29422 | -1/Command | Found Exp. Weapon Cycler 29500 | -1/Command | Found Adv. Kinecellerator 29760 | -1/Command | Warped through subspace to slip node 29760 | -1/Command | Discovered new exit (range 5) 29767 | -1/Command | Entered Access_0 29769 | -1/Access_0 | Met Architect 29770 | -1/Access_0 | Architect warped through subspace 29780 | -1/Access_0 | Destroyed A8 29793 | -1/Access_0 | Architect warped through subspace 29798 | -1/Access_0 | Subspace Access Node disabled 29811 | -1/Access_0 | Architect warped through subspace 29821 | -1/Access_0 | Architect warped through subspace 29829 | -1/Access_0 | Subspace Access Node disabled 29831 | -1/Access_0 | Architect warped through subspace 29843 | -1/Access_0 | Architect warped through subspace 29878 | -1/Access_0 | Architect warped through subspace 29887 | -1/Access_0 | Found Hpw. Transdimensional Reconstructor 29898 | -1/Access_0 | A6 warped into view 29900 | -1/Access_0 | Destroyed A6 29914 | -1/Access_0 | Architect warped through subspace 29951 | -1/Access_0 | Destroyed 7 combat bots 29952 | -1/Access_0 | Architect warped through subspace 29984 | -1/Access_0 | Architect warped through subspace 30001 | -1/Access_0 | Architect warped through subspace 30035 | -1/Access_0 | Subspace Access Node disabled 30038 | -1/Access_0 | Architect warped through subspace 30047 | -1/Access_0 | A5 warped into view 30055 | -1/Access_0 | Destroyed A5 30087 | -1/Access_0 | Architect warped through subspace 30123 | -1/Access_0 | Architect warped through subspace 30141 | -1/Access_0 | Architect warped through subspace 30157 | -1/Access_0 | Architect warped through subspace 30169 | -1/Access_0 | A4 warped into view 30180 | -1/Access_0 | Destroyed A4 30182 | -1/Access_0 | Architect warped through subspace 30226 | -1/Access_0 | Architect warped through subspace 30251 | -1/Access_0 | Architect warped through subspace 30275 | -1/Access_0 | Destroyed A2 30277 | -1/Access_0 | Extracted Singularity Gate Test 138-C access codes from A2's data core 30297 | -1/Access_0 | Started Test 138-B, establishing a local singularity 30299 | -1/Access_0 | Singularity Gate disabled 30299 | -1/Access_0 | Singularity Gate disabled 30305 | -1/Access_0 | Architect warped through subspace 30342 | -1/Access_0 | Subspace Access Node disabled 30368 | -1/Access_0 | Destroyed Architect 30370 | -1/Access_0 | Extracted unknown sensor trigger ID from Architect's data core 30371 | -1/Access_0 | Found Hpw. Transdimensional Reconstructor 30421 | -1/Access_0 | Found Sigix Corpse 30490 | -1/Access_0 | Destroyed 7 combat bots 30560 | -1/Access_0 | A3 warped into view 30570 | -1/Access_0 | Destroyed A3 30692 | -1/Access_0 | Found Core Regenerator 30692 | -1/Access_0 | Used Core Regenerator, restored core integrity (+400) 30833 | -1/Access_0 | Found Integrated Mediator 30833 | -1/Access_0 | Installed Integrated Mediator, increased core attachment efficiency 30858 | -1/Access_0 | Found Exp. Phase Shifter 30868 | -1/Access_0 | Found Exp. Weapon Cycler 31007 | -1/Access_0 | Found Core Expander 31161 | -1/Access_0 | Warped through subspace to slip node 31161 | -1/Access_0 | Discovered new exit (range 8) 31166 | *** | Establishing 0b11! Last Messages --------------- 31045_ Enhanced Grunt suffers critical hit (Destroy). 31045_ Destroyed Enh. Flexi-carbon Leg. 31045_ HV Slug penetrates Enhanced Grunt. 31045_ Enhanced Grunt suffers critical hit (Destroy). 31045_ Enhanced Grunt destroyed. 31045_ HV Slug penetrates Wall. 31047_ Wall collapses. 31047_ Acquired 90 matter. 31047_ Acquired 44 matter. 31067_ The protective shell folds into the floor. 31091_ System corrupted: Matter fused (-5). 31111_ Connecting with Gate Controls... 31134_ NCNDPVFPHLLEV KC/9HQKGPQ 7C